Workbook

Sheet Avantages perçus
A1: Bénéficiaire | B1: Type de bénéficiaire | C1: Entreprise | D1: Date | E1: Nature | F1: Montant
A2: IGR, Villejuif | B2: Etablissement de santé | C2: MSD France | D2: 2013-01-09 | E2: TRANSPORT | F2: 25
A3: IGR, Villejuif | B3: Etablissement de santé | C3: MSD France | D3: 18/06/2013 | E3: TRANSPORT | F3: 252
A4: IGR, Villejuif | B4: Etablissement de santé | C4: SANDOZ | D4: 2013-07-10 | E4: DONS DE MATERIEL | F4: 60
A5: IGR, Villejuif | B5: Etablissement de santé | C5: ROCHE SAS | D5: 30/09/2013 | E5: Dons de matériel | F5: 85
A6: IGR, Villejuif | B6: Etablissement de santé | C6: ROCHE SAS | D6: 30/09/2013 | E6: Dons de matériel | F6: 85
A7: IGR, Villejuif | B7: Etablissement de santé | C7: COVIDIEN FRANCE S.A.S. | D7: 29/10/2013 | E7: REPAS | F7: 24
A8: IGR, Villejuif | B8: Etablissement de santé | C8: ROCHE SAS | D8: 30/10/2013 | E8: Dons de fonctionnement | F8: 10000
A9: IGR, Villejuif | B9: Association professionnel de santé | C9: ASTELLAS PHARMA | D9: 2013-11-06 | E9: DONS DE FONCTIONNEMENT | F9: 10000
A10: IGR, Villejuif | B10: Etablissement de santé | C10: CHUGAI PHARMA FRANCE | D10: 2013-11-10 | E10: DONS | F10: 1000
A11: IGR, Villejuif | B11: Personnes morales assurant la formation initiale ou continue des professionnels de santé | C11: CELGENE | D11: 26/11/2013 | E11: DONS DE FONCTIONNEMENT / RECHERCHE | F11: 15000
A12: IGR, Villejuif | B12: Etablissement de santé | C12: CHUGAI PHARMA FRANCE | D12: 2013-12-10 | E12: DONS | F12: 5000
A13: IGR, Villejuif | B13: Etablissement de santé | C13: PFIZER SAS | D13: 16/12/2013 | E13: AUTRE: [DON] | F13: 15000
A14: IGR, Villejuif | B14: Académies, Fondation, sociétés savantes, organismes de conseils | C14: BIOM'UP | D14: 24/12/2013 | E14: Don | F14: 500
A15: IGR, Villejuif | B15: Etablissement de santé | C15: PFIZER SAS | D15: 2014-02-03 | E15: AUTRE: [DON] | F15: 15000
A16: IGR, Villejuif | B16: Association professionnel de santé | C16: Takeda France | D16: 27/03/2014 | E16: Autre : [stand] | F16: 2500
A17: IGR, Villejuif | B17: Etablissement de santé | C17: Genzyme | D17: 2014-04-01 | E17: Autre : [Remboursement de frais] | F17: 3000
A18: IGR, Villejuif | B18: Etablissement de santé | C18: CHUGAI PHARMA FRANCE | D18: 2014-04-10 | E18: DONS | F18: 5000
A19: IGR, Villejuif | B19: Etablissement de santé | C19: PSI CRO FRANCE | D19: 14/04/2014 | E19: Autre | F19: 9174
A20: IGR, Villejuif | B20: Etablissement de santé | C20: PSI CRO FRANCE | D20: 14/04/2014 | E20: Autre | F20: 5617
A21: IGR, Villejuif | B21: Association professionnel de santé | C21: GAMIDA | D21: 18/04/2014 | E21: DONS DE FONCTIONNEMENT | F21: 500
A22: IGR, Villejuif | B22: Etablissement de santé | C22: PHILIPS FRANCE | D22: 2014-05-07 | E22: DONS DE FONCTIONNEMENT | F22: 500
A23: IGR, Villejuif | B23: Etablissement de santé | C23: Becton Dickinson France SAS | D23: 14/05/2014 | E23: DONS DE FONCTIONNEMENT | F23: 1000
A24: IGR, Villejuif | B24: Etablissement de santé | C24: NOVARTIS PHARMA SAS | D24: 20/05/2014 | E24: Autre : [Don] | F24: 15000
A25: IGR, Villejuif | B25: Etablissement de santé | C25: NOVARTIS PHARMA SAS | D25: 20/05/2014 | E25: Autre : [Don] | F25: 15000
A26: IGR, Villejuif | B26: Etablissement de santé | C26: PSI CRO FRANCE | D26: 21/05/2014 | E26: Autre | F26: 22506
A27: IGR, Villejuif | B27: Association professionnel de santé | C27: LEO Pharma | D27: 27/05/2014 | E27: DONS DE FONCTIONNEMENT | F27: 600
A28: IGR, Villejuif | B28: Etablissement de santé | C28: NOVARTIS PHARMA SAS | D28: 20/06/2014 | E28: Autre : [Don] | F28: 20000
A29: IGR, Villejuif | B29: Etablissement de santé | C29: CHUGAI PHARMA FRANCE | D29: 2014-07-10 | E29: DONS | F29: 5000
A30: IGR, Villejuif | B30: Etablissement de santé | C30: ROCHE SAS | D30: 2014-10-01 | E30: DONS DE FONCTIONNEMENT | F30: 2000
A31: IGR, Villejuif | B31: Etablissement de santé | C31: ROCHE SAS | D31: 2014-10-01 | E31: DONS DE MATERIEL | F31: 145
A32: IGR, Villejuif | B32: Etablissement de santé | C32: PSI CRO FRANCE | D32: 28/01/2015 | E32: Autre | F32: 3300
A33: IGR, Villejuif | B33: Etablissement de santé | C33: PSI CRO FRANCE | D33: 28/01/2015 | E33: Autre | F33: 15408
A34: IGR, Villejuif | B34: Association professionnel de santé | C34: ASTELLAS PHARMA | D34: 2015-02-04 | E34: DONS DE FONCTIONNEMENT | F34: 7000
A35: IGR, Villejuif | B35: Etablissement de santé | C35: INC RESEARCH, LLC | D35: 2015-02-05 | E35: HEBERGEMENT | F35: 147
A36: IGR, Villejuif | B36: Etablissement de santé | C36: INC RESEARCH, LLC | D36: 2015-02-05 | E36: REPAS | F36: 108
A37: IGR, Villejuif | B37: Etablissement de santé | C37: INC RESEARCH, LLC | D37: 2015-02-06 | E37: REPAS | F37: 107
A38: IGR, Villejuif | B38: Etablissement de santé | C38: INC RESEARCH, LLC | D38: 2015-02-06 | E38: HEBERGEMENT | F38: 147
A39: IGR, Villejuif | B39: Etablissement de santé | C39: INC RESEARCH, LLC | D39: 2015-02-07 | E39: TRANSPORT | F39: 155
A40: IGR, Villejuif | B40: Etablissement de santé | C40: INC RESEARCH, LLC | D40: 2015-02-07 | E40: DONS DE FONCTIONNEMENT | F40: 17
A41: IGR, Villejuif | B41: Etablissement de santé | C41: PSI CRO FRANCE | D41: 16/02/2015 | E41: Autre | F41: 55374
A42: IGR, Villejuif | B42: Etablissement de santé | C42: SINCLAIR PHARMA | D42: 26/03/2015 | E42: AUTRE : STAND CONGRES | F42: 2460
A43: IGR, Villejuif | B43: Etablissement de santé | C43: PSI CRO FRANCE | D43: 26/03/2015 | E43: Autre | F43: 12474
A44: IGR, Villejuif | B44: Etablissement de santé | C44: SINCLAIR PHARMA | D44: 2015-04-09 | E44: AUTRE : STAND CONGRES | F44: 500
A45: IGR, Villejuif | B45: Etablissement de santé | C45: PSI CRO FRANCE | D45: 14/04/2015 | E45: Autre | F45: 528
A46: IGR, Villejuif | B46: Etablissement de santé | C46: PSI CRO FRANCE | D46: 14/04/2015 | E46: Autre | F46: 396
A47: IGR, Villejuif | B47: Etablissement de santé | C47: PSI CRO FRANCE | D47: 14/04/2015 | E47: Autre | F47: 634
A48: IGR, Villejuif | B48: Etablissement de santé | C48: PSI CRO FRANCE | D48: 14/04/2015 | E48: Autre | F48: 396
A49: IGR, Villejuif | B49: Etablissement de santé | C49: BOSTON SCIENTIFIC SAS | D49: 22/05/2015 | E49: Autre : [Location de stand] | F49: 4500
A50: IGR, Villejuif | B50: Académies, Fondation, sociétés savantes, organismes de conseils | C50: INSTITUT MERIEUX | D50: 2015-06-08 | E50: REMUNERATION | F50: 50000
A51: IGR, Villejuif | B51: Etablissement de santé | C51: MSD France | D51: 17/06/2015 | E51: AUTRE : REMUNERATION | F51: 1250
A52: IGR, Villejuif | B52: Etablissement de santé | C52: PSI CRO FRANCE | D52: 30/06/2015 | E52: Autre | F52: 5148
A53: IGR, Villejuif | B53: Etablissement de santé | C53: PSI CRO FRANCE | D53: 30/06/2015 | E53: Autre | F53: 5280
A54: IGR, Villejuif | B54: Etablissement de santé | C54: PSI CRO FRANCE | D54: 30/06/2015 | E54: Autre | F54: 924
A55: IGR, Villejuif | B55: Etablissement de santé | C55: PSI CRO FRANCE | D55: 30/06/2015 | E55: Autre | F55: 3062
A56: IGR, Villejuif | B56: Etablissement de santé | C56: PSI CRO FRANCE | D56: 30/06/2015 | E56: Autre | F56: 264
A57: IGR, Villejuif | B57: Etablissement de santé | C57: PSI CRO FRANCE | D57: 30/06/2015 | E57: Autre | F57: 104609
A58: IGR, Villejuif | B58: Etablissement de santé | C58: INC RESEARCH, LLC | D58: 2015-07-02 | E58: HEBERGEMENT | F58: 114
A59: IGR, Villejuif | B59: Etablissement de santé | C59: INC RESEARCH, LLC | D59: 2015-07-02 | E59: REPAS | F59: 165
A60: IGR, Villejuif | B60: Etablissement de santé | C60: INC RESEARCH, LLC | D60: 2015-07-03 | E60: TRANSPORT | F60: 53
A61: IGR, Villejuif | B61: Etablissement de santé | C61: INC RESEARCH, LLC | D61: 2015-07-03 | E61: DONS DE FONCTIONNEMENT | F61: 45
A62: IGR, Villejuif | B62: Etablissement de santé | C62: MSD France | D62: 19/08/2015 | E62: AUTRE : REMUNERATION | F62: 1500
A63: IGR, Villejuif | B63: Etablissement de santé | C63: MSD France | D63: 18/11/2015 | E63: AUTRE : REMUNERATION | F63: 50400
A64: IGR, Villejuif | B64: Etablissement de santé | C64: Genzyme | D64: 17/12/2015 | E64: Autre : [Remboursement de frais] | F64: 1500
A65: IGR, Villejuif | B65: Etablissement de santé | C65: CHUGAI PHARMA FRANCE | D65: 28/12/2015 | E65: DONS | F65: 4000
A66: IGR, Villejuif | B66: Etablissement de santé | C66: CHUGAI PHARMA FRANCE | D66: 28/12/2015 | E66: DONS | F66: 2500
A67: IGR, Villejuif | B67: Etablissement de santé | C67: CHUGAI PHARMA FRANCE | D67: 28/12/2015 | E67: DONS | F67: 4000
A68: IGR, Villejuif | B68: Etablissement de santé | C68: ROCHE SAS | D68: 2016-01-12 | E68: Autre : [Remboursement de frais] | F68: 192
A69: IGR, Villejuif | B69: Etablissement de santé | C69: PFIZER SAS | D69: 2016-02-02 | E69: Dons de fonctionnement | F69: 500000
A70: IGR, Villejuif | B70: Etablissement de santé | C70: PFIZER SAS | D70: 22/03/2016 | E70: Transport | F70: 738
A71: IGR, Villejuif | B71: Etablissement de santé | C71: Advanced Accelerator Applications | D71: 30/03/2016 | E71: Autre | F71: 400
A72: IGR, Villejuif | B72: Académies, Fondation, sociétés savantes, organismes de conseils | C72: INSTITUT MERIEUX | D72: 15/04/2016 | E72: REMUNERATION | F72: 50000
A73: IGR, Villejuif | B73: Etablissement de santé | C73: ASTELLAS PHARMA | D73: 2016-05-03 | E73: DONS DE FONCTIONNEMENT | F73: 28000
A74: IGR, Villejuif | B74: Académies, Fondation, sociétés savantes, organismes de conseils | C74: INSTITUT MERIEUX | D74: 23/06/2016 | E74: REMUNERATION | F74: 500
A75: IGR, Villejuif | B75: Académies, Fondation, sociétés savantes, organismes de conseils | C75: INSTITUT MERIEUX | D75: 23/06/2016 | E75: REMUNERATION | F75: 500
A76: IGR, Villejuif | B76: Etablissement de santé | C76: MSD France | D76: 18/07/2016 | E76: AUTRE : REMUNERATION | F76: 87744
A77: IGR, Villejuif | B77: Etablissement de santé | C77: ROCHE SAS | D77: 26/07/2016 | E77: Hebergement | F77: 198
A78: IGR, Villejuif | B78: Etablissement de santé | C78: ROCHE SAS | D78: 26/07/2016 | E78: Transport | F78: 668
A79: IGR, Villejuif | B79: Etablissement de santé | C79: ROCHE SAS | D79: 2016-08-02 | E79: Hebergement | F79: 122
A80: IGR, Villejuif | B80: Etablissement de santé | C80: ROCHE SAS | D80: 2016-08-02 | E80: Transport | F80: 287
A81: IGR, Villejuif | B81: Académies, Fondation, sociétés savantes, organismes de conseils | C81: INSTITUT MERIEUX | D81: 29/09/2016 | E81: REMUNERATION | F81: 500
A82: IGR, Villejuif | B82: Etablissement de santé | C82: MSD France | D82: 2016-10-03 | E82: DONS DE FONCTIONNEMENT | F82: 18490
A83: IGR, Villejuif | B83: Etablissement de santé | C83: Lilly France SAS | D83: 2016-12-07 | E83: AUTRE : [CONTRAT DE PARTENARIAT - LOCATION DE STAND] | F83: 1200
A84: IGR, Villejuif | B84: Etablissement de santé | C84: CHUGAI PHARMA FRANCE | D84: 27/12/2016 | E84: DONS | F84: 2500
A85: IGR, Villejuif | B85: Etablissement de santé | C85: PFIZER SAS | D85: 2017-01-10 | E85: Dons de fonctionnement | F85: 500000
A86: IGR, Villejuif | B86: Etablissement de santé | C86: PSI CRO FRANCE | D86: 13/01/2017 | E86: FRAIS RELATIFS A LA RECHERCHE IMPLIQUANT LA PERSONNE HUMAINE | F86: 8350
A87: IGR, Villejuif | B87: Etablissement de santé | C87: PSI CRO FRANCE | D87: 26/01/2017 | E87: FRAIS RELATIFS A LA RECHERCHE IMPLIQUANT LA PERSONNE HUMAINE | F87: 11814
A88: IGR, Villejuif | B88: Etablissement de santé | C88: AbbVie | D88: 20/02/2017 | E88: AUTRE : [DONS] | F88: 800
A89: IGR, Villejuif | B89: Etablissement de santé | C89: MERCK SERONO | D89: 2017-03-03 | E89: AUTRES | F89: 3000
A90: IGR, Villejuif | B90: Etablissement de santé | C90: ROCHE SAS | D90: 21/03/2017 | E90: Transport | F90: 63
A91: IGR, Villejuif | B91: Etablissement de santé | C91: Bayer HealthCare SAS | D91: 27/04/2017 | E91: HEBERGEMENT | F91: 186
A92: IGR, Villejuif | B92: Etablissement de santé | C92: ROCHE SAS | D92: 16/05/2017 | E92: Transport | F92: 552
A93: IGR, Villejuif | B93: Etablissement de santé | C93: ROCHE SAS | D93: 30/05/2017 | E93: Transport | F93: 185
A94: IGR, Villejuif | B94: Etablissement de santé | C94: ROCHE SAS | D94: 14/06/2017 | E94: Transport | F94: 568
A95: IGR, Villejuif | B95: Etablissement de santé | C95: ROCHE SAS | D95: 20/06/2017 | E95: Transport | F95: 116
A96: IGR, Villejuif | B96: Etablissement de santé | C96: MERCK SERONO | D96: 21/06/2017 | E96: AUTRES | F96: 520
A97: IGR, Villejuif | B97: Etablissement de santé | C97: CHUGAI PHARMA FRANCE | D97: 25/06/2017 | E97: DONS | F97: 5000
A98: IGR, Villejuif | B98: Etablissement de santé | C98: ROCHE SAS | D98: 2017-07-04 | E98: Transport | F98: 175
A99: IGR, Villejuif | B99: Etablissement de santé | C99: ROCHE SAS | D99: 2017-07-11 | E99: Transport | F99: 196
A100: IGR, Villejuif | B100: Académies, Fondation, sociétés savantes, organismes de conseils | C100: LABORATOIRE NUXE | D100: 17/07/2017 | E100: AUTRE: [DON] | F100: 1000
A101: IGR, Villejuif | B101: Etablissement de santé | C101: ROCHE SAS | D101: 16/08/2017 | E101: Autre : [Remboursement de frais] | F101: 1200
A102: IGR, Villejuif | B102: Etablissement de santé | C102: MSD France | D102: 30/08/2017 | E102: DONS DE FONCTIONNEMENT | F102: 12668
A103: IGR, Villejuif | B103: Etablissement de santé | C103: MSD France | D103: 30/08/2017 | E103: DONS DE FONCTIONNEMENT | F103: 12668
A104: IGR, Villejuif | B104: Etablissement de santé | C104: ROCHE SAS | D104: 2017-09-12 | E104: Transport | F104: 18
A105: IGR, Villejuif | B105: Etablissement de santé | C105: ROCHE SAS | D105: 2017-10-10 | E105: Dons de fonctionnement | F105: 5000
A106: IGR, Villejuif | B106: Etablissement de santé | C106: ASTRAZENECA | D106: 16/10/2017 | E106: DON | F106: 60000
A107: IGR, Villejuif | B107: Etablissement de santé | C107: Takeda France | D107: 23/10/2017 | E107: AUTRE : DON DE MÉDICAMENT | F107: 25200
A108: IGR, Villejuif | B108: Etablissement de santé | C108: CHUGAI PHARMA FRANCE | D108: 2017-11-10 | E108: DONS | F108: 5000
A109: IGR, Villejuif | B109: Etablissement de santé | C109: CHUGAI PHARMA FRANCE | D109: 27/11/2017 | E109: DONS | F109: 10000
A110: IGR, Villejuif | B110: Etablissement de santé | C110: LABORATOIRE GLAXOSMITHKLINE | D110: 15/12/2017 | E110: TRANSPORT | F110: 29
A111: IGR, Villejuif | B111: Etablissement de santé | C111: CHUGAI PHARMA FRANCE | D111: 28/12/2017 | E111: DONS | F111: 5000
A112: IGR, Villejuif | B112: Etablissement de santé | C112: CHUGAI PHARMA FRANCE | D112: 28/12/2017 | E112: DONS | F112: 10000
A113: IGR, Villejuif | B113: Etablissement de santé | C113: CHUGAI PHARMA FRANCE | D113: 28/12/2017 | E113: DONS | F113: 600
C115: Total | F115: =SUM(F2:F114) -> 1889985
F117: Montants | G117: Nbres | H117: %Montant | I117: %cumulé
C118: PFIZER SAS | F118: =SUMIF($C$2:$C$113,C118,$F$2:$F$113) -> 1030738 | G118: =COUNTIF($C$2:$C$113,C118) -> 5 | H118: =F118/$F$115 -> 0.5453683495 | I118: =H118 -> 0.5453683495
C120: PSI CRO France | F120: =SUMIF($C$2:$C$113,C120,$F$2:$F$113) -> 265258 | G120: =COUNTIF($C$2:$C$113,C120) -> 19 | H120: =F120/$F$115 -> 0.140349262 | I120: =H120+I118 -> 0.6857176115
C122: MSD France | F122: =SUMIF($C$2:$C$113,C122,$F$2:$F$113) -> 184997 | G122: =COUNTIF($C$2:$C$113,C122) -> 9 | H122: =F122/$F$115 -> 0.09788278743 | I122: =H122+I120 -> 0.7836003989
C124: INSTITUT MERIEUX | F124: =SUMIF($C$2:$C$113,C124,$F$2:$F$113) -> 101500 | G124: =COUNTIF($C$2:$C$113,C124) -> 5 | H124: =F124/$F$115 -> 0.05370412993 | I124: =H124+I122 -> 0.8373045289
C126: CHUGAI PHARMA FRANCE | F126: =SUMIF($C$2:$C$113,C126,$F$2:$F$113) -> 64600 | G126: =COUNTIF($C$2:$C$113,C126) -> 14 | H126: =F126/$F$115 -> 0.03418016545 | I126: =H126+I124 -> 0.8714846943
C128: ASTRAZENECA | F128: =SUMIF($C$2:$C$113,C128,$F$2:$F$113) -> 60000 | G128: =COUNTIF($C$2:$C$113,C128) -> 1 | H128: =F128/$F$115 -> 0.0317462837 | I128: =H128+I126 -> 0.903230978
C130: NOVARTIS PHARMA SAS | F130: =SUMIF($C$2:$C$113,C130,$F$2:$F$113) -> 50000 | G130: =COUNTIF($C$2:$C$113,C130) -> 3
C131: Sociétés étrangères du groupe Novartis | F131: =SUMIF($C$2:$C$113,C131,$F$2:$F$113) -> 0 | G131: =COUNTIF($C$2:$C$113,C131) -> 0
C132: Total NOVARTIS | F132: =SUM(F130:F131) -> 50000 | G132: =SUM(G130:G131) -> 3 | H132: =F132/$F$115 -> 0.02645523642 | I132: =H132+I128 -> 0.9296862144
C134: ASTELLAS PHARMA | F134: =SUMIF($C$2:$C$113,C134,$F$2:$F$113) -> 45000 | G134: =COUNTIF($C$2:$C$113,C134) -> 3 | H134: =F134/$F$115 -> 0.02380971278 | I134: =H134+I132 -> 0.9534959272
C136: Takeda France | F136: =SUMIF($C$2:$C$113,C136,$F$2:$F$113) -> 27700 | G136: =COUNTIF($C$2:$C$113,C136) -> 2 | H136: =F136/$F$115 -> 0.01465620098 | I136: =H136+I132 -> 0.9443424154
C138: ROCHE SAS | F138: =SUMIF($C$2:$C$113,C138,$F$2:$F$113) -> 21855 | G138: =COUNTIF($C$2:$C$113,C138) -> 20
C139: Institut Roche | F139: =SUMIF($C$2:$C$113,C139,$F$2:$F$113) -> 0 | G139: =COUNTIF($C$2:$C$113,C139) -> 0
C140: Total ROCHE | F140: =SUM(F138:F139) -> 21855 | G140: =SUM(G138:G139) -> 20 | H140: =F140/$F$115 -> 0.01156358384 | I140: =H140+I136 -> 0.9559059993
C142: Genzyme | F142: =SUMIF($C$2:$C$113,C142,$F$2:$F$113) -> 4500 | G142: =COUNTIF($C$2:$C$113,C142) -> 2 | H142: =F142/$F$115 -> 0.002380971278 | I142: =H142+I140 -> 0.9582869705
C144: MERCK SERONO | F144: =SUMIF($C$2:$C$113,C144,$F$2:$F$113) -> 3520 | G144: =COUNTIF($C$2:$C$113,C144) -> 2 | H144: =F144/$F$115 -> 0.001862448644 | I144: =H144+I142 -> 0.9601494192
C146: Lilly France SAS | F146: =SUMIF($C$2:$C$113,C146,$F$2:$F$113) -> 1200 | G146: =COUNTIF($C$2:$C$113,C146) -> 1 | H146: =F146/$F$115 -> 0.000634925674 | I146: =H146+I144 -> 0.9607843448
C148: AbbVie | F148: =SUMIF($C$2:$C$113,C148,$F$2:$F$113) -> 800 | G148: =COUNTIF($C$2:$C$113,C148) -> 1 | H148: =F148/$F$115 -> 0.0004232837827 | I148: =H148+I146 -> 0.9612076286
C150: Bayer HealthCare SAS | F150: =SUMIF($C$2:$C$113,C150,$F$2:$F$113) -> 186 | G150: =COUNTIF($C$2:$C$113,C150) -> 1 | H150: =F150/$F$115 -> 9.841347947e-05 | I150: =H150+I146 -> 0.9608827583
C152: LABORATOIRE GLAXOSMITHKLINE | F152: =SUMIF($C$2:$C$113,C152,$F$2:$F$113) -> 29 | G152: =COUNTIF($C$2:$C$113,C152) -> 1 | H152: =F152/$F$115 -> 1.534403712e-05 | I152: =H152+I150 -> 0.9608981024
C154: Orion Corporation Orion Pharma | F154: =SUMIF($C$2:$C$113,C154,$F$2:$F$113) -> 0 | G154: =COUNTIF($C$2:$C$113,C154) -> 0 | H154: =F154/$F$115 -> 0
C156: BRISTOL-MYERS SQUIBB COMPANY | F156: =SUMIF($C$2:$C$113,C156,$F$2:$F$113) -> 0 | G156: =COUNTIF($C$2:$C$113,C156) -> 0
C157: BRISTOL-MYERS SQUIBB | F157: =SUMIF($C$2:$C$113,C157,$F$2:$F$113) -> 0 | G157: =COUNTIF($C$2:$C$113,C157) -> 0
C158: Total BMS | F158: =SUM(F156:F157) -> 0 | G158: =SUM(G156:G157) -> 0 | H158: =F158/$F$115 -> 0
C160: Celgene Corporation | F160: =SUMIF($C$2:$C$113,C160,$F$2:$F$113) -> 0 | G160: =COUNTIF($C$2:$C$113,C160) -> 0 | H160: =F160/$F$115 -> 0
C162: JANSSEN-CILAG | F162: =SUMIF($C$2:$C$113,C162,$F$2:$F$113) -> 0 | G162: =COUNTIF($C$2:$C$113,C162) -> 0 | H162: =F162/$F$115 -> 0
C164: AMGEN SAS | F164: =SUMIF($C$2:$C$113,C164,$F$2:$F$113) -> 0 | G164: =COUNTIF($C$2:$C$113,C164) -> 0 | H164: =F164/$F$115 -> 0
C166: PIERRE FABRE MEDICAMENT | F166: =SUMIF($C$2:$C$113,C166,$F$2:$F$113) -> 0 | G166: =COUNTIF($C$2:$C$113,C166) -> 0 | H166: =F166/$F$115 -> 0
C168: IPSEN PHARMA | F168: =SUMIF($C$2:$C$113,C168,$F$2:$F$113) -> 0 | G168: =COUNTIF($C$2:$C$113,C168) -> 0 | H168: =F168/$F$115 -> 0
C170: SANOFI-AVENTIS RECHERCHE & DEVELOPPEMENT | F170: =SUMIF($C$2:$C$113,C170,$F$2:$F$113) -> 0 | G170: =COUNTIF($C$2:$C$113,C170) -> 0
C171: SANOFI AVENTIS France | F171: =SUMIF($C$2:$C$113,C171,$F$2:$F$113) -> 0 | G171: =COUNTIF($C$2:$C$113,C171) -> 0
C172: SANOFI-AVENTIS GROUPE | F172: =SUMIF($C$2:$C$113,C172,$F$2:$F$113) -> 0 | G172: =COUNTIF($C$2:$C$113,C172) -> 0
C173: TOTAL SANOFI-AVENTIS | F173: =SUM(F170:F172) -> 0 | G173: =SUM(G170:G172) -> 0 | H173: =F173/$F$115 -> 0
C175: GE Medical Systems SCS | F175: =SUM(F172:F174) -> 0 | G175: =SUM(G172:G174) -> 0
C177: EISAI SAS | F177: =SUM(F174:F176) -> 0 | G177: =SUM(G174:G176) -> 0
C179: Totaux | F179: =SUM(F118:F173)-F130-F134-F138 -> 1816883 | G179: =SUM(G118:G158)-G130-G134-G138 -> 86 | H179: =F179/$F$115 -> 0.9613213861
C220: Totaux
C222: Les CROs
C226: INC RESEARCH, LLC | F226: =SUMIF($C$2:$C$113,C226,$F$2:$F$113) -> 1058 | G226: =COUNTIF($C$2:$C$113,C226) -> 10

Sheet Conventions signées
A1: Bénéficiaire | B1: Type de bénéficiaire | C1: Entreprise | D1: Date | E1: Période | F1: Objet | G1: Montants | J1: Lieux
A2: IGR, Villejuif | B2: Etablissement de santé | C2: GE Medical Systems SCS | D2: 01/01/2013 | E2: 01/01/2013 - 31/12/2014 | F2: Autre : Autre : site de référence | G2: 17980
A3: IGR, Villejuif | B3: Etablissement de santé | C3: SANOFI-AVENTIS RECHERCHE & DEVELOPPEMENT | D3: 01/01/2013 | E3: 01/01/2013 - 31/12/2013 | F3: Contrat d'expert scientifique, contrat dans le cadre d'une recherche, contrat de consultant
A4: IGR, Villejuif | B4: Etablissement de santé | C4: PFIZER SAS | D4: 02/01/2013 | E4: 02/01/2013 - | F4: Formation
A5: IGR, Villejuif | B5: Etablissement de santé | C5: SANOFI AVENTIS FRANCE | D5: 10/01/2013 | E5: 10/01/2013 - 10/01/2013 | F5: Autres prestations de services
A6: IGR, Villejuif | B6: Etablissement de santé | C6: SANOFI-AVENTIS RECHERCHE & DEVELOPPEMENT | D6: 10/01/2013 | E6: 11/07/2011 - 30/06/2014 | F6: Recherche scientifique
A7: IGR, Villejuif | B7: Etablissement de santé | C7: SANOFI-AVENTIS RECHERCHE & DEVELOPPEMENT | D7: 10/01/2013 | E7: 09/05/2012 - 31/12/2016 | F7: Contrat d'expert scientifique, contrat dans le cadre d'une recherche, contrat de consultant
A8: IGR, Villejuif | B8: Etablissement de santé | C8: LABORATOIRE GLAXOSMITHKLINE | D8: 28/01/2013 | E8: 28/01/2013 - | F8: Recherche scientifique
A9: IGR, Villejuif | B9: Etablissement de santé | C9: SANOFI AVENTIS FRANCE | D9: 30/01/2013 | E9: 30/01/2013 - 01/01/2999 | F9: Recherche scientifique
A10: IGR, Villejuif | B10: Etablissement de santé | C10: BOEHRINGER INGELHEIM FRANCE | D10: 04/02/2013 | E10: 04/02/2013 - | F10: Autre : RECHERCHE AVENANT
A11: IGR, Villejuif | B11: Etablissement de santé | C11: SANOFI-AVENTIS GROUPE | D11: 04/02/2013 | E11: 04/02/2013 - 04/02/2013 | F11: Contrat d'intervenant à une manifestation / orateur
A12: IGR, Villejuif | B12: Etablissement de santé | C12: INNATE PHARMA | D12: 21/02/2013 | E12: 21/02/2013 - | F12: Recherche scientifique
A13: IGR, Villejuif | B13: Etablissement de santé | C13: JANSSEN-CILAG | D13: 22/02/2013 | E13: 22/02/2013 - | F13: Recherche scientifique
A14: IGR, Villejuif | B14: Etablissement de santé | C14: INC RESEARCH, LLC | D14: 23/02/2013 | E14: 23/02/2013 - | F14: Recherche scientifique
A15: IGR, Villejuif | B15: Etablissement de santé | C15: Advanced Accelerator Applications | D15: 05/03/2013 | E15: 05/03/2013 - | F15: Recherche scientifique
A16: IGR, Villejuif | B16: Association professionnel de santé | C16: LEO Pharma | D16: 19/03/2013 | E16: 19/03/2013 - | F16: Recherche scientifique
A17: IGR, Villejuif | B17: Etablissement de santé | C17: SANOFI-AVENTIS RECHERCHE & DEVELOPPEMENT | D17: 21/03/2013 | E17: 21/03/2013 - 21/03/2013 | F17: Autres prestations de services
A18: IGR, Villejuif | B18: Etablissement de santé | C18: LABORATOIRE GLAXOSMITHKLINE | D18: 03/04/2013 | E18: 03/04/2013 - | F18: Recherche scientifique
A19: IGR, Villejuif | B19: Etablissement de santé | C19: SANOFI-AVENTIS RECHERCHE & DEVELOPPEMENT | D19: 22/04/2013 | E19: 22/04/2013 - 30/04/2014 | F19: Recherche scientifique
A20: IGR, Villejuif | B20: Etablissement de santé | C20: ROCHE SAS | D20: 25/04/2013 | E20: 25/04/2013 - 31/12/2013 | F20: Autre : Autre : [ Expert ]
A21: IGR, Villejuif | B21: Etablissement de santé | C21: PFIZER SAS | D21: 16/05/2013 | E21: 16/05/2013 - | F21: Autre : PUBLICITE STAND
A22: IGR, Villejuif | B22: Etablissement de santé | C22: SANOFI-AVENTIS RECHERCHE & DEVELOPPEMENT | D22: 16/05/2013 | E22: 16/05/2013 - | F22: Contrat d'intervenant à une manifestation / orateur
A23: IGR, Villejuif | B23: Etablissement de santé | C23: PSI CRO FRANCE | D23: 28/05/2013 | E23: 28/05/2013 - | F23: Recherche scientifique
A24: IGR, Villejuif | B24: Etablissement de santé | C24: AbbVie | D24: 29/05/2013 | E24: 29/05/2013 - | F24: Autre : AUTRE : CONVENTION DE RECHERCHE
A25: IGR, Villejuif | B25: Etablissement de santé | C25: PFIZER SAS | D25: 10/06/2013 | E25: 10/06/2013 - | F25: Autre : PUBLICITE STAND
A26: IGR, Villejuif | B26: Etablissement de santé | C26: Lilly France SAS | D26: 19/06/2013 | E26: 19/06/2013 - | F26: Autre : LOCATION DE STAND
A27: IGR, Villejuif | B27: Etablissement de santé | C27: PFIZER SAS | D27: 20/06/2013 | E27: 20/06/2013 - | F27: Autre : PUBLICITE STAND
A28: IGR, Villejuif | B28: Etablissement de santé | C28: GENETHON | D28: 21/06/2013 | E28: 21/06/2013 - 31/12/2018 | F28: Recherche scientifique
A29: IGR, Villejuif | B29: Etablissement de santé | C29: SANOFI-AVENTIS RECHERCHE & DEVELOPPEMENT | D29: 24/06/2013 | E29: 24/06/2013 - 01/01/2999 | F29: Recherche scientifique
A30: IGR, Villejuif | B30: Etablissement de santé | C30: INC RESEARCH, LLC | D30: 27/06/2013 | E30: 27/06/2013 - | F30: Recherche scientifique
A31: IGR, Villejuif | B31: Etablissement de santé | C31: MSD France | D31: 30/06/2013 | E31: 14/11/2011 - | F31: Autre : RECHERCHE BIOMEDICALE
A32: IGR, Villejuif | B32: Etablissement de santé | C32: MSD France | D32: 30/06/2013 | E32: 28/10/2008 - | F32: Autre : RECHERCHE BIOMEDICALE
A33: IGR, Villejuif | B33: Etablissement de santé | C33: MSD France | D33: 30/06/2013 | E33: 01/12/2011 - | F33: Autre : RECHERCHE BIOMEDICALE
A34: IGR, Villejuif | B34: Etablissement de santé | C34: MSD France | D34: 30/06/2013 | E34: 27/01/2012 - | F34: Autre : RECHERCHE BIOMEDICALE
A35: IGR, Villejuif | B35: Etablissement de santé | C35: MSD France | D35: 30/06/2013 | E35: 18/01/2013 - | F35: Autre : RECHERCHE BIOMEDICALE
A36: IGR, Villejuif | B36: Etablissement de santé | C36: MSD France | D36: 30/06/2013 | E36: 17/02/2012 - | F36: Autre : RECHERCHE BIOMEDICALE
A37: IGR, Villejuif | B37: Etablissement de santé | C37: PFIZER SAS | D37: 12/07/2013 | E37: 25/05/2011 - | F37: Recherche scientifique
A38: IGR, Villejuif | B38: Etablissement de santé | C38: PFIZER SAS | D38: 12/07/2013 | E38: 25/05/2011 - | F38: Recherche scientifique
A39: IGR, Villejuif | B39: Etablissement de santé | C39: PFIZER SAS | D39: 12/07/2013 | E39: 25/05/2011 - | F39: Recherche scientifique
A40: IGR, Villejuif | B40: Etablissement de santé | C40: MSD France | D40: 18/07/2013 | E40: 18/07/2013 - | F40: Autre : RECHERCHE BIOMÉDICALE
A41: IGR, Villejuif | B41: Etablissement de santé | C41: ASTRAZENECA | D41: 23/07/2013 | E41: 23/07/2013 - | F41: Autre : Autre
A42: IGR, Villejuif | B42: Etablissement de santé | C42: MSD France | D42: 30/07/2013 | E42: 30/07/2013 - | F42: Autre : RECHERCHE BIOMÉDICALE
A43: IGR, Villejuif | B43: Etablissement de santé | C43: MSD France | D43: 30/07/2013 | E43: 30/07/2013 - | F43: Autre : RECHERCHE BIOMEDICALE
A44: IGR, Villejuif | B44: Etablissement de santé | C44: GE Medical Systems SCS | D44: 30/07/2013 | E44: 30/07/2013 - 31/12/2014 | F44: Autre : Recherche et Evaluation
A45: IGR, Villejuif | B45: Etablissement de santé | C45: Celgene Corporation | D45: 04/08/2013 | E45: 06/12/2013 - | F45: Recherche scientifique | G45: 261728
A46: IGR, Villejuif | B46: Etablissement de santé | C46: LABORATOIRE GLAXOSMITHKLINE | D46: 06/08/2013 | E46: 06/08/2013 - | F46: Recherche scientifique
A47: IGR, Villejuif | B47: Etablissement de santé | C47: MSD France | D47: 13/08/2013 | E47: 13/08/2013 - | F47: Autre : PRESTATION EVENEMENTIELLE (STAND, AUTRE)
A48: IGR, Villejuif | B48: Etablissement de santé | C48: MSD France | D48: 13/08/2013 | E48: 13/08/2013 - | F48: Autre : PRESTATION SERVICE
A49: IGR, Villejuif | B49: Etablissement de santé | C49: QUINTILES BENEFIT FRANCE SNC | D49: 21/08/2013 | E49: 21/08/2013 - 21/08/2013 | F49: Autre : Recherche Clinique
A50: IGR, Villejuif | B50: Etablissement de santé | C50: PFIZER SAS | D50: 26/08/2013 | E50: 26/08/2013 - 26/08/2013 | F50: Recherche scientifique
A51: IGR, Villejuif | B51: Etablissement de santé | C51: ASTRAZENECA | D51: 09/09/2013 | E51: 09/10/2013 - | F51: Recherche scientifique
A52: IGR, Villejuif | B52: Etablissement de santé | C52: ASTRAZENECA | D52: 09/09/2013 | E52: 06/09/2013 - | F52: Recherche scientifique
A53: IGR, Villejuif | B53: Etablissement de santé | C53: Bayer HealthCare SAS | D53: 11/09/2013 | E53: 10/10/2013 - 10/10/2013 | F53: Autre : Autre :Contrat de location de stand
A54: IGR, Villejuif | B54: Etablissement de santé | C54: Orion Corporation Orion Pharma | D54: 12/09/2013 | E54: 12/09/2013 - | F54: Recherche scientifique
A55: IGR, Villejuif | B55: Etablissement de santé | C55: GE Medical Systems SCS | D55: 23/09/2013 | E55: 23/09/2013 - 24/09/2013 | F55: Autre : Marketing et Parrainage
A56: IGR, Villejuif | B56: Académies, Fondation, sociétés savantes, organismes de conseils | C56: Bayer HealthCare SAS | D56: 23/09/2013 | E56: 14/10/2013 - | F56: Autre : Recherche et Développement
A57: IGR, Villejuif | B57: Etablissement de santé | C57: GE Medical Systems SCS | D57: 25/09/2013 | E57: 01/08/2013 - 31/01/2014 | F57: Autre : Recherche et Evaluation
A58: IGR, Villejuif | B58: Etablissement de santé | C58: Puma Biotechnology | D58: 26/09/2013 | E58: 26/09/2013 - | F58: Recherche scientifique
A59: IGR, Villejuif | B59: Etablissement de santé | C59: GE Medical Systems SCS | D59: 30/09/2013 | E59: 30/09/2013 - | F59: Autre : Recherche et Evaluation
A60: IGR, Villejuif | B60: Etablissement de santé | C60: ROCHE SAS | D60: 05/10/2013 | E60: 21/10/2013 - | F60: Recherche scientifique
A61: IGR, Villejuif | B61: Etablissement de santé | C61: PIERRE FABRE MEDICAMENT | D61: 08/10/2013 | E61: 08/10/2013 - | F61: Autre : CONVENTIONS DE RECHERCHE BIO MEDICALE
A62: IGR, Villejuif | B62: Etablissement de santé | C62: MERCK SERONO | D62: 10/10/2013 | E62: 10/10/2013 - 21/10/2013 | F62: Autre : AUTRE
A63: IGR, Villejuif | B63: Etablissement de santé | C63: GE Medical Systems SCS | D63: 10/10/2013 | E63: 10/10/2013 - | F63: Autre : Marketing et Parrainage
A64: IGR, Villejuif | B64: Etablissement de santé | C64: LABORATOIRE GLAXOSMITHKLINE | D64: 16/10/2013 | E64: 16/10/2013 - | F64: Recherche scientifique
A65: IGR, Villejuif | B65: Etablissement de santé | C65: BOEHRINGER INGELHEIM FRANCE | D65: 24/10/2013 | E65: 24/10/2013 - | F65: Recherche scientifique
A66: IGR, Villejuif | B66: Etablissement de santé | C66: BOEHRINGER INGELHEIM FRANCE | D66: 24/10/2013 | E66: 24/10/2013 - | F66: Recherche scientifique
A67: IGR, Villejuif | B67: Etablissement de santé | C67: ROCHE SAS | D67: 29/10/2013 | E67: 01/01/2014 - 31/12/2014 | F67: Autre : Autre : [ Expert ]
A68: IGR, Villejuif | B68: Etablissement de santé | C68: ROCHE SAS | D68: 07/11/2013 | E68: 30/06/2013 - 30/12/2013 | F68: Autre : Autre : [ Partenariat ]
A69: IGR, Villejuif | B69: Etablissement de santé | C69: MSD France | D69: 20/11/2013 | E69: 20/11/2013 - 31/12/2017 | F69: Autre : RECHERCHE BIOMEDICALE
A70: IGR, Villejuif | B70: Etablissement de santé | C70: B.BRAUN MEDICAL SAS | D70: 22/11/2013 | E70: 22/11/2013 - 31/12/2013 | F70: Partenariat
A71: IGR, Villejuif | B71: Etablissement de santé | C71: Bristol-Myers Squibb EMEA | D71: 25/11/2013 | E71: 25/11/2013 - | F71: Autre : Autre : [Consultant (HCP)]
A72: IGR, Villejuif | B72: Etablissement de santé | C72: BOEHRINGER INGELHEIM FRANCE | D72: 26/11/2013 | E72: 26/11/2013 - | F72: Recherche scientifique
A73: IGR, Villejuif | B73: Personnes morales assurant la formation initiale ou continue des professionnels de santé | C73: CELGENE | D73: 26/11/2013 | E73: 26/11/2013 - 31/12/2013 | F73: Autre : SUBVENTIONS
A74: IGR, Villejuif | B74: Etablissement de santé | C74: ASTRAZENECA | D74: 02/12/2013 | E74: 02/12/2013 - | F74: Recherche scientifique
A75: IGR, Villejuif | B75: Etablissement de santé | C75: ASTRAZENECA | D75: 04/12/2013 | E75: 01/10/2013 - | F75: Recherche scientifique
A76: IGR, Villejuif | B76: Etablissement de santé | C76: Transgene SA | D76: 05/12/2013 | E76: 05/12/2013 - 04/12/2015 | F76: Recherche scientifique
A77: IGR, Villejuif | B77: Etablissement de santé | C77: Bayer HealthCare SAS | D77: 05/12/2013 | E77: 05/12/2013 - | F77: Autre : Recherche et Développement
A78: IGR, Villejuif | B78: Etablissement de santé | C78: SANOFI AVENTIS FRANCE | D78: 06/12/2013 | E78: 06/12/2013 - 31/12/2016 | F78: Autre : Recherche et Développement
A79: IGR, Villejuif | B79: Etablissement de santé | C79: ASTRAZENECA | D79: 10/12/2013 | E79: 10/12/2013 - | F79: Recherche scientifique
A80: IGR, Villejuif | B80: Etablissement de santé | C80: ASTRAZENECA | D80: 10/12/2013 | E80: 10/12/2013 - | F80: Recherche scientifique
A81: IGR, Villejuif | B81: Etablissement de santé | C81: AMGEN SAS | D81: 10/12/2013 | E81: 21/01/2014 - 21/01/2014 | F81: Autre : AUTRE [LOCATION DE STAND]
A82: IGR, Villejuif | B82: Etablissement de santé | C82: IPSEN PHARMA | D82: 13/12/2013 | E82: 13/12/2013 - | F82: Recherche scientifique
A83: IGR, Villejuif | B83: Etablissement de santé | C83: Bayer HealthCare SAS | D83: 17/12/2013 | E83: 17/12/2013 - 31/12/2015 | F83: Autre : Contrat de conseil scientifique
A84: IGR, Villejuif | B84: Etablissement de santé | C84: MSD France | D84: 19/12/2013 | E84: 19/12/2013 - | F84: Autre : RECHERCHE BIOMÉDICALE
A85: IGR, Villejuif | B85: Etablissement de santé | C85: MSD France | D85: 31/12/2013 | E85: 17/09/2013 - | F85: Autre : RECHERCHE BIOMÉDICALE
A86: IGR, Villejuif | B86: Etablissement de santé | C86: MSD France | D86: 31/12/2013 | E86: 17/10/2013 - | F86: Autre : EXPERT
A87: IGR, Villejuif | B87: Etablissement de santé | C87: MSD France | D87: 31/12/2013 | E87: 08/07/2013 - | F87: Autre : RECHERCHE BIOMEDICALE
A88: IGR, Villejuif | B88: Etablissement de santé | C88: MUNDIPHARMA | D88: 02/01/2014 | E88: 02/01/2014 - | F88: Autre : AUTRE : LOCATION DE STAND
A89: IGR, Villejuif | B89: Académies, Fondation, sociétés savantes, organismes de conseils | C89: Bayer HealthCare SAS | D89: 02/01/2014 | E89: 10/01/2014 - 10/01/2014 | F89: Autre : Autre :Contrat de location de stand
A90: IGR, Villejuif | B90: Etablissement de santé | C90: ASTRAZENECA | D90: 06/01/2014 | E90: 06/01/2014 - | F90: Partenariat
A91: IGR, Villejuif | B91: Etablissement de santé | C91: BRISTOL-MYERS SQUIBB | D91: 08/01/2014 | E91: 08/01/2014 - | F91: Autre : Autre : [Recherche/Développement]
A92: IGR, Villejuif | B92: Etablissement de santé | C92: BRISTOL-MYERS SQUIBB | D92: 08/01/2014 | E92: 08/01/2014 - | F92: Autre : Autre : [Recherche/Développement]
A93: IGR, Villejuif | B93: Académies, Fondation, sociétés savantes, organismes de conseils | C93: Bayer HealthCare SAS | D93: 15/01/2014 | E93: 22/01/2014 - 22/01/2014 | F93: Autre : Autre :Contrat de location de stand
A94: IGR, Villejuif | B94: Etablissement de santé | C94: PIERRE FABRE MEDICAMENT | D94: 15/01/2014 | E94: 31/01/2015 - | F94: Autre : CONTRAT DE PRESTATION DE RECHERCHE
A95: IGR, Villejuif | B95: Etablissement de santé | C95: FRESENIUS KABI FRANCE | D95: 15/01/2014 | E95: 15/01/2014 - | F95: Autre : AUTRE : ASSISTANCE
A96: IGR, Villejuif | B96: Etablissement de santé | C96: COVIDIEN FRANCE S.A.S. | D96: 17/01/2014 | E96: 17/01/2014 - | F96: Autre : PRESTATIONS DE SERVICES AVEC DES PERSONNES MORALES
A97: IGR, Villejuif | B97: Etablissement de santé | C97: Lilly France SAS | D97: 20/01/2014 | E97: 20/01/2014 - 20/01/2014 | F97: Autre : AUTRE : [CONTRAT DE PARTENARIAT - LOCATION DE STAND]
A98: IGR, Villejuif | B98: Etablissement de santé | C98: NODEA MEDICAL | D98: 22/01/2014 | E98: 07/11/2013 - 07/01/2015 | F98: Autre : Convention de recherche biomédicale.
A99: IGR, Villejuif | B99: Etablissement de santé | C99: MERCK SERONO | D99: 23/01/2014 | E99: 23/01/2014 - 23/01/2014 | F99: Autre : CONGRES/SYMPOSIUM
A100: IGR, Villejuif | B100: Etablissement de santé | C100: Takeda France | D100: 29/01/2014 | E100: 29/01/2014 - 15/02/2014 | F100: Autre : Autre : [CONTRAT_DE_PRESTATIONS_DE_SERVICES]
A101: IGR, Villejuif | B101: Etablissement de santé | C101: BOEHRINGER INGELHEIM FRANCE | D101: 29/01/2014 | E101: 29/01/2014 - | F101: Recherche scientifique
A102: IGR, Villejuif | B102: Etablissement de santé | C102: BOEHRINGER INGELHEIM FRANCE | D102: 05/02/2014 | E102: 05/02/2014 - | F102: Recherche scientifique
A103: IGR, Villejuif | B103: Académies, Fondation, sociétés savantes, organismes de conseils | C103: MEDTRONIC France S.A.S | D103: 10/02/2014 | E103: 27/03/2014 - 28/03/2014 | F103: Inscription congrès
A104: IGR, Villejuif | B104: Etablissement de santé | C104: MSD France | D104: 02/03/2014 | E104: 02/03/2014 - 31/12/2018 | F104: Autre : RECHERCHE BIOMEDICALE
A105: IGR, Villejuif | B105: Etablissement de santé | C105: MSD France | D105: 02/03/2014 | E105: 02/03/2014 - 31/12/2018 | F105: Autre : RECHERCHE BIOMEʄICALE
A106: IGR, Villejuif | B106: Etablissement de santé | C106: ROCHE SAS | D106: 03/03/2014 | E106: 01/04/2014 - 31/12/2014 | F106: Autre : Autre : [ Expert ]
A107: IGR, Villejuif | B107: Etablissement de santé | C107: Takeda France | D107: 04/03/2014 | E107: 04/03/2014 - 31/12/2014 | F107: Autre : Autre : [Convention mécénat]
A108: IGR, Villejuif | B108: Etablissement de santé | C108: LABORATOIRE GLAXOSMITHKLINE | D108: 06/03/2014 | E108: 06/03/2014 - | F108: Recherche scientifique
A109: IGR, Villejuif | B109: Etablissement de santé | C109: Bayer HealthCare SAS | D109: 06/03/2014 | E109: 13/03/2014 - 31/12/2016 | F109: Autre : Contrat de recherche interventionnelle et non-interventionnelle
A110: IGR, Villejuif | B110: Etablissement de santé | C110: ASTRAZENECA | D110: 10/03/2014 | E110: 21/03/2014 - | F110: Autre : Congrès/symposium
A111: IGR, Villejuif | B111: Etablissement de santé | C111: LABORATOIRE GLAXOSMITHKLINE | D111: 10/03/2014 | E111: 10/03/2014 - | F111: Recherche scientifique
A112: IGR, Villejuif | B112: Etablissement de santé | C112: MERCK SERONO | D112: 18/03/2014 | E112: 17/03/2014 - 02/04/2014 | F112: Formation
A113: IGR, Villejuif | B113: Etablissement de santé | C113: IPSEN PHARMA | D113: 18/03/2014 | E113: 25/03/2014 - 25/04/2014 | F113: Formation
A114: IGR, Villejuif | B114: Association professionnel de santé | C114: Takeda France | D114: 27/03/2014 | E114: 27/03/2014 - 27/03/2014 | F114: Autre : Autre : [Stand]
A115: IGR, Villejuif | B115: Etablissement de santé | C115: Genzyme | D115: 01/04/2014 | E115: 01/04/2014 - 01/04/2014 | F115: Autres prestations de services
A116: IGR, Villejuif | B116: Etablissement de santé | C116: ROCHE SAS | D116: 02/04/2014 | E116: 31/01/2014 - 31/12/2014 | F116: Autre : Autre : [ Expert ]
A117: IGR, Villejuif | B117: Etablissement de santé | C117: IPSEN PHARMA | D117: 04/04/2014 | E117: 21/05/2014 - 23/05/2014 | F117: Autre : CONGRES/SYMPOSIUM
A118: IGR, Villejuif | B118: Etablissement de santé | C118: Bayer HealthCare SAS | D118: 10/04/2014 | E118: 10/04/2014 - 31/12/2014 | F118: Autre : AUTRE : Partenariat
A119: IGR, Villejuif | B119: Etablissement de santé | C119: NOVARTIS PHARMA SAS | D119: 17/04/2014 | E119: 17/04/2014 - 16/12/2017 | F119: Recherche scientifique
A120: IGR, Villejuif | B120: Etablissement de santé | C120: Inventivhealthclinical | D120: 22/04/2014 | E120: 22/04/2014 - | F120: Recherche scientifique
A121: IGR, Villejuif | B121: Etablissement de santé | C121: LABORATOIRE GLAXOSMITHKLINE | D121: 23/04/2014 | E121: 23/04/2014 - | F121: Recherche scientifique
A122: IGR, Villejuif | B122: Etablissement de santé | C122: Inventivhealthclinical | D122: 24/04/2014 | E122: 24/04/2014 - | F122: Recherche scientifique
A123: IGR, Villejuif | B123: Association professionnel de santé | C123: EISAI SAS | D123: 28/04/2014 | E123: 18/06/2014 - 18/06/2014 | F123: Autre : AUTRE / STAND
A124: IGR, Villejuif | B124: Etablissement de santé | C124: BRISTOL-MYERS SQUIBB | D124: 02/05/2014 | E124: 02/05/2014 - | F124: Autre : Autre : [Recherche/Développement]
A125: IGR, Villejuif | B125: Etablissement de santé | C125: SANOFI AVENTIS FRANCE | D125: 02/05/2014 | E125: 02/05/2014 - 30/06/2021 | F125: Partenariat
A126: IGR, Villejuif | B126: Etablissement de santé | C126: VIFOR FRANCE SA | D126: 05/05/2014 | E126: 05/05/2014 - | F126: Autre : LOCATION DE STAND
A127: IGR, Villejuif | B127: Etablissement de santé | C127: AbbVie | D127: 06/05/2014 | E127: 06/05/2014 - | F127: Autre : AUTRE: [CONTRAT DE PRESTATIONS DE SERVICES]
A128: IGR, Villejuif | B128: Etablissement de santé | C128: DIAXONHIT | D128: 07/05/2014 | E128: 01/06/2014 - 01/06/2015 | F128: Recherche scientifique
A129: IGR, Villejuif | B129: Etablissement de santé | C129: Advanced Accelerator Applications | D129: 12/05/2014 | E129: 12/05/2014 - | F129: Recherche scientifique
A130: IGR, Villejuif | B130: Etablissement de santé | C130: ROCHE SAS | D130: 13/05/2014 | E130: 09/05/2014 - | F130: Recherche scientifique
A131: IGR, Villejuif | B131: Etablissement de santé | C131: GENETHON | D131: 13/05/2014 | E131: 13/05/2014 - 12/05/2016 | F131: Recherche scientifique
A132: IGR, Villejuif | B132: Etablissement de santé | C132: GENETHON | D132: 19/05/2014 | E132: 19/05/2014 - 18/05/2015 | F132: Recherche scientifique
A133: IGR, Villejuif | B133: Etablissement de santé | C133: SANDOZ | D133: 21/05/2014 | E133: 21/05/2014 - 27/09/2018 | F133: Autre : PARTENARIAT RECHERCHE
A134: IGR, Villejuif | B134: Etablissement de santé | C134: PPD FRANCE SAS | D134: 21/05/2014 | E134: 21/05/2014 - 21/05/2019 | F134: Autre : RECHERCHE CLINIQUE
A135: IGR, Villejuif | B135: Etablissement de santé | C135: Lilly France SAS | D135: 23/05/2014 | E135: 23/05/2014 - 23/05/2014 | F135: Autre : AUTRE : [CONTRAT DE PARTENARIAT - LOCATION DE STAND]
A136: IGR, Villejuif | B136: Etablissement de santé | C136: ASTRAZENECA | D136: 23/05/2014 | E136: 23/05/2014 - | F136: Autre : Autre
A137: IGR, Villejuif | B137: Etablissement de santé | C137: ASTRAZENECA | D137: 23/05/2014 | E137: 23/05/2014 - | F137: Autre : Congrès/symposium
A138: IGR, Villejuif | B138: Etablissement de santé | C138: B.BRAUN MEDICAL SAS | D138: 26/05/2014 | E138: 26/05/2014 - | F138: Autre : AUTRE [PRESTATIONS DE SERVICE]
A139: IGR, Villejuif | B139: Etablissement de santé | C139: MSD France | D139: 10/06/2014 | E139: 10/06/2014 - | F139: Autre : RECHERCHE BIOMÉDICALE
A140: IGR, Villejuif | B140: Etablissement de santé | C140: ASTRAZENECA | D140: 10/06/2014 | E140: 26/06/2014 - | F140: Autre : Congrès/symposium
A141: IGR, Villejuif | B141: Etablissement de santé | C141: BRISTOL-MYERS SQUIBB | D141: 12/06/2014 | E141: 12/06/2014 - | F141: Autre : Autre : [Recherche/Développement]
A142: IGR, Villejuif | B142: Personnes morales assurant la formation initiale ou continue des professionnels de santé | C142: CELGENE | D142: 16/06/2014 | E142: 24/06/2014 - 24/06/2014 | F142: Formation
A143: IGR, Villejuif | B143: Etablissement de santé | C143: Lilly France SAS | D143: 18/06/2014 | E143: 18/06/2014 - 18/06/2014 | F143: Autre : AUTRE : [CONTRAT DE PARTENARIAT - LOCATION DE STAND]
A144: IGR, Villejuif | B144: Etablissement de santé | C144: ProStrakan Pharma | D144: 18/06/2014 | E144: 18/06/2014 - 18/06/2014 | F144: Autre : Congrès / Symposium
A145: IGR, Villejuif | B145: Association professionnel de santé | C145: BOEHRINGER INGELHEIM FRANCE | D145: 18/06/2014 | E145: 18/06/2014 - | F145: Autre : CONGRES / SYMPOSIUM
A146: IGR, Villejuif | B146: Etablissement de santé | C146: ASTRAZENECA | D146: 26/06/2014 | E146: 26/06/2014 - | F146: Autre : Congrès/symposium
A147: IGR, Villejuif | B147: Etablissement de santé | C147: NOVARTIS PHARMA SAS | D147: 30/06/2014 | E147: 30/06/2014 - 31/07/2017 | F147: Recherche scientifique
A148: IGR, Villejuif | B148: Etablissement de santé | C148: BRISTOL-MYERS SQUIBB | D148: 30/06/2014 | E148: 30/06/2014 - | F148: Autre : Autre : [Recherche/Développement]
A149: IGR, Villejuif | B149: Etablissement de santé | C149: BRISTOL-MYERS SQUIBB | D149: 30/06/2014 | E149: 30/06/2014 - | F149: Autre : Autre : [Recherche/Développement]
A150: IGR, Villejuif | B150: Etablissement de santé | C150: NODEA MEDICAL | D150: 01/07/2014 | E150: 30/08/2014 - 30/06/2016 | F150: Autre : Convention de recherche biomédicale
A151: IGR, Villejuif | B151: Etablissement de santé | C151: BRISTOL-MYERS SQUIBB | D151: 07/07/2014 | E151: 07/07/2014 - | F151: Autre : Autre : [Recherche/Développement]
A152: IGR, Villejuif | B152: Etablissement de santé | C152: BRISTOL-MYERS SQUIBB | D152: 07/07/2014 | E152: 07/07/2014 - | F152: Autre : Autre : [Recherche/Développement]
A153: IGR, Villejuif | B153: Etablissement de santé | C153: NODEA MEDICAL | D153: 07/07/2014 | E153: 06/06/2014 - 06/02/2015 | F153: Autre : convention de recherche biomédicale
A154: IGR, Villejuif | B154: Etablissement de santé | C154: PFIZER SAS | D154: 08/07/2014 | E154: 22/07/2014 - | F154: Recherche scientifique
A155: IGR, Villejuif | B155: Etablissement de santé | C155: LEO Pharma | D155: 09/07/2014 | E155: 09/07/2014 - 23/05/2014 | F155: Autre : AUTRE : [LOCATION DE STAND]
A156: IGR, Villejuif | B156: Etablissement de santé | C156: PAREXEL International | D156: 15/07/2014 | E156: 15/07/2014 - | F156: Autre : RECHERCHE CLINIQUE
A157: IGR, Villejuif | B157: Etablissement de santé | C157: Genzyme | D157: 15/07/2014 | E157: 15/07/2014 - 15/07/2014 | F157: Autres prestations de services
A158: IGR, Villejuif | B158: Etablissement de santé | C158: BRACCO IMAGING FRANCE | D158: 17/07/2014 | E158: 17/07/2014 - | F158: Autre : AUTRE : [LOCATION ESPACE STAND]
A159: IGR, Villejuif | B159: Etablissement de santé | C159: INC RESEARCH, LLC | D159: 17/07/2014 | E159: 17/07/2014 - | F159: Recherche scientifique
A160: IGR, Villejuif | B160: Etablissement de santé | C160: MERCK SERONO | D160: 18/07/2014 | E160: 10/10/2014 - 20/10/2014 | F160: Autre : CONSEIL
A161: IGR, Villejuif | B161: Etablissement de santé | C161: PFIZER SAS | D161: 22/07/2014 | E161: 27/08/2014 - | F161: Autre : AUTRE : [PARTENARIAT/STAND]
A162: IGR, Villejuif | B162: Etablissement de santé | C162: ROCHE SAS | D162: 24/07/2014 | E162: 09/10/2014 - 11/10/2014 | F162: Autre : Autre : [ Partenariat ]
A163: IGR, Villejuif | B163: Etablissement de santé | C163: SANOFI AVENTIS FRANCE | D163: 24/07/2014 | E163: 24/07/2014 - | F163: Recherche scientifique
A164: IGR, Villejuif | B164: Etablissement de santé | C164: CHUGAI PHARMA FRANCE | D164: 25/07/2014 | E164: 25/07/2014 - | F164: Autre : LOCATION DE STAND
A165: IGR, Villejuif | B165: Etablissement de santé | C165: PIERRE FABRE MEDICAMENT | D165: 05/08/2014 | E165: 09/10/2014 - 11/10/2014 | F165: Autre : CONTRAT DE LOCATION DE STAND
A166: IGR, Villejuif | B166: Etablissement de santé | C166: PIERRE FABRE MEDICAMENT | D166: 11/08/2014 | E166: 01/07/2014 - 31/12/2014 | F166: Autre : CONVENTION DE PARTENARIAT
A167: IGR, Villejuif | B167: Etablissement de santé | C167: INC RESEARCH, LLC | D167: 12/08/2014 | E167: 12/08/2014 - | F167: Recherche scientifique
A168: IGR, Villejuif | B168: Etablissement de santé | C168: PFIZER SAS | D168: 26/08/2014 | E168: 02/09/2014 - | F168: Autre : CONGRES/SYMPOSIUM
A169: IGR, Villejuif | B169: Etablissement de santé | C169: ASTRAZENECA | D169: 03/09/2014 | E169: 03/09/2014 - | F169: Formation
A170: IGR, Villejuif | B170: Etablissement de santé | C170: SANOFI-AVENTIS GROUPE | D170: 04/09/2014 | E170: 04/06/2013 - 04/06/2018 | F170: Recherche scientifique
A171: IGR, Villejuif | B171: Etablissement de santé | C171: Accuray Europe | D171: 12/09/2014 | E171: 09/10/2014 - 11/10/2014 | F171: Inscription congrès
A172: IGR, Villejuif | B172: Etablissement de santé | C172: ROCHE SAS | D172: 18/09/2014 | E172: 31/01/2015 - | F172: Recherche scientifique
A173: IGR, Villejuif | B173: Etablissement de santé | C173: ROCHE SAS | D173: 18/09/2014 | E173: 31/01/2015 - | F173: Recherche scientifique
A174: IGR, Villejuif | B174: Etablissement de santé | C174: ROCHE SAS | D174: 22/09/2014 | E174: 26/09/2014 - | F174: Recherche scientifique
A175: IGR, Villejuif | B175: Etablissement de santé | C175: Bayer HealthCare SAS | D175: 22/09/2014 | E175: 22/09/2014 - 31/12/2018 | F175: Autre : Recherche et développement
A176: IGR, Villejuif | B176: Etablissement de santé | C176: ROCHE SAS | D176: 23/09/2014 | E176: 01/06/2014 - 30/04/2015 | F176: Recherche scientifique
A177: IGR, Villejuif | B177: Etablissement de santé | C177: Orion Corporation Orion Pharma | D177: 23/09/2014 | E177: 23/09/2014 - | F177: Recherche scientifique
A178: IGR, Villejuif | B178: Etablissement de santé | C178: ROCHE SAS | D178: 06/10/2014 | E178: 10/10/2014 - | F178: Recherche scientifique
A179: IGR, Villejuif | B179: Etablissement de santé | C179: NOVARTIS PHARMA SAS | D179: 09/10/2014 | E179: 09/10/2014 - 11/10/2014 | F179: Autre : Autre : [Contrat de conseilprestation]
A180: IGR, Villejuif | B180: Etablissement de santé | C180: ROCHE SAS | D180: 09/10/2014 | E180: 06/10/2014 - 10/10/2014 | F180: Autre : Autre : [ Parrainage ]
A181: IGR, Villejuif | B181: Association professionnel de santé | C181: Takeda France | D181: 09/10/2014 | E181: 09/10/2014 - 11/10/2014 | F181: Autre : Autre : [CONVENTION D'HOSPITALITE]
A182: IGR, Villejuif | B182: Etablissement de santé | C182: Lilly France SAS | D182: 11/10/2014 | E182: 09/10/2014 - 11/10/2014 | F182: Autre : AUTRE : [CONTRAT DE PARTENARIAT - LOCATION DE STAND]
A183: IGR, Villejuif | B183: Etablissement de santé | C183: SANOFI AVENTIS FRANCE | D183: 13/10/2014 | E183: 13/10/2014 - | F183: Recherche scientifique
A184: IGR, Villejuif | B184: Etablissement de santé | C184: Inventivhealthclinical | D184: 13/10/2014 | E184: 13/10/2014 - | F184: Contrat d'expert scientifique, contrat dans le cadre d'une recherche, contrat de consultant
A185: IGR, Villejuif | B185: Etablissement de santé | C185: AbbVie | D185: 22/10/2014 | E185: 22/10/2014 - | F185: Autre : AUTRE : [ETUDE CLINIQUE]
A186: IGR, Villejuif | B186: Etablissement de santé | C186: INC RESEARCH, LLC | D186: 05/11/2014 | E186: 05/11/2014 - | F186: Recherche scientifique
A187: IGR, Villejuif | B187: Personnes morales assurant la formation initiale ou continue des professionnels de santé | C187: ONXEO | D187: 18/11/2014 | E187: 18/11/2014 - 19/11/2014 | F187: Autre : conseil
A188: IGR, Villejuif | B188: Etablissement de santé | C188: PSI CRO FRANCE | D188: 21/11/2014 | E188: 21/11/2014 - | F188: Recherche scientifique
A189: IGR, Villejuif | B189: Etablissement de santé | C189: Transgene SA | D189: 25/11/2014 | E189: 05/12/2014 - 04/02/2015 | F189: Recherche scientifique
A190: IGR, Villejuif | B190: Etablissement de santé | C190: INC RESEARCH, LLC | D190: 27/11/2014 | E190: 27/11/2014 - | F190: Recherche scientifique
A191: IGR, Villejuif | B191: Etablissement de santé | C191: ROCHE SAS | D191: 01/12/2014 | E191: 01/10/2014 - 31/12/2015 | F191: Autre : Autre : [ Partenariat ]
A192: IGR, Villejuif | B192: Etablissement de santé | C192: BRISTOL-MYERS SQUIBB | D192: 01/12/2014 | E192: 01/12/2014 - | F192: Autre : Autre : [Recherche/Développement]
A193: IGR, Villejuif | B193: Etablissement de santé | C193: ROCHE SAS | D193: 03/12/2014 | E193: 26/03/2014 - | F193: Recherche scientifique
A194: IGR, Villejuif | B194: Etablissement de santé | C194: ASTRAZENECA | D194: 04/12/2014 | E194: 04/12/2014 - | F194: Formation
A195: IGR, Villejuif | B195: Association professionnel de santé | C195: ASTRAZENECA | D195: 10/12/2014 | E195: 01/10/2014 - | F195: Autre : Autre
A196: IGR, Villejuif | B196: Etablissement de santé | C196: QUINTILES BENEFIT FRANCE SNC | D196: 16/12/2014 | E196: 16/12/2014 - 16/12/2014 | F196: Autre : Recherche Clinique
A197: IGR, Villejuif | B197: Association professionnel de santé | C197: SIEMENS SAS | D197: 16/12/2014 | E197: 16/12/2014 - 09/02/2015 | F197: Autre : Autre : Contrat de Sponsoring Evènement Commercial
A198: IGR, Villejuif | B198: Etablissement de santé | C198: QUINTILES BENEFIT FRANCE SNC | D198: 18/12/2014 | E198: 18/12/2014 - 18/12/2014 | F198: Autre : Recherche Clinique
A199: IGR, Villejuif | B199: Etablissement de santé | C199: Lilly France SAS | D199: 19/12/2014 | E199: 19/01/2015 - 19/01/2015 | F199: Autre : AUTRE : [CONTRAT DE PARTENARIAT - LOCATION DE STAND]
A200: IGR, Villejuif | B200: Etablissement de santé | C200: BOEHRINGER INGELHEIM FRANCE | D200: 21/12/2014 | E200: 21/12/2014 - | F200: Contrat d'expert scientifique, contrat dans le cadre d'une recherche, contrat de consultant
... 520 more rows

Sheet AVANTAGES
A1: TYPE_AVTG dans Transparence.sante.gouv.fr | B1: TYPE_AVTG (libellé de regroupement)
A2: [Autre] : Participation Evenement Scientifique | B2: Congrès
A3: [Autre] inscription congrès | B3: Inscription
A4: [HEBERGEMENT] | B4: Hébergement
A5: [HOSPITALITE] | B5: Hospitalité
A6: [REPAS] | B6: Repas
A7: [TRANSPORT] | B7: Transport
A8: Acheminement | B8: Transport
A9: AUTRE | B9: Autre
A10: Autre : [ Forfait journée détude ] | B10: Autre
A11: Autre : [ Forfait journée détude ou forfait congrès ] | B11: Congrès
A12: Autre : [ Forfait journée étude ] | B12: Autre
A13: Autre : [ Inscription ] | B13: Inscription
A14: AUTRE : [ACCOMPAGNEMENT] | B14: Autre
A15: AUTRE : [CONTRAT DE PARTENARIAT - LOCATION DE STAND] | B15: Congrès
A16: AUTRE : [DEDOMMAGEMENT] | B16: Autre
A17: Autre : [DEJEUNER REUNION] | B17: Repas
A18: AUTRE : [DON EN NATURE] | B18: Autre
A19: Autre : [don] | B19: Autre
A20: AUTRE : [DONS] | B20: Autre
A21: Autre : [ECHANTILLON] | B21: Autre
A22: Autre : [Forfait] | B22: Autre
A23: Autre : [Formation] | B23: Autre
A24: Autre : [FRAIS D'INSCRIPTION] | B24: Inscription
A25: Autre : [HONORAIRE] | B25: Autre
A26: Autre : [Honoraires PdS] | B26: Autre
A27: Autre : [Honoraires] | B27: Repas
A28: Autre : [Hospitalité Evenement Scientifique] | B28: Hospitalité
A29: AUTRE : [HOSPITALITE] | B29: Hospitalité
A30: AUTRE : [INSCRIPTION CONGRÈS SCIENTIFIQUE] | B30: Inscription
A31: Autre : [Inscription Evenement Scientifique] | B31: Inscription
A32: Autre : [Inscription] | B32: Inscription
A33: Autre : [Location de stand] | B33: Congrès
A34: Autre : [note de frais] | B34: Autre
A35: Autre : [Notes de frais] | B35: Autre
A36: AUTRE : [PARTICIPATION EVENEMENT SCIENTIFIQUE] | B36: Congrès
A37: AUTRE : [PAUSE] | B37: Autre
A38: Autre : [Remboursement de frais] | B38: Autre
A39: AUTRE : [REMBOURSEMENT FRAIS LOGISTIQUE] | B39: Autre
A40: Autre : [Remis Publication scientifique] | B40: Autre
A41: Autre : [rémunération] | B41: Repas
A42: Autre : [Restauration] | B42: Repas
A43: Autre : [stand] | B43: Congrès
A44: Autre : cheque | B44: Autre
A45: AUTRE : CONGRES | B45: Autre
A46: AUTRE : DEJEUNER | B46: Repas
A47: AUTRE : DEUX PAUSES | B47: Repas
A48: AUTRE : DINER | B48: Repas
A49: AUTRE : DON DE MÉDICAMENT | B49: Autre
A50: autre : enquête internet | B50: Autre
A51: AUTRE : FORMATION MEDICALE CONTINUE | B51: Autre
A52: AUTRE : FRAIS DE RESTAURATION / RP | B52: Repas
A53: Autre : Frais d'inscription Congres | B53: Inscription
A54: Autre : Frais d'inscription Congrès | B54: Inscription
A55: AUTRE : HONORAIRE | B55: Autre
A56: AUTRE : HONORAIRE CONFERENCE TELEPHONIQUE | B56: Autre
A57: AUTRE : HONORAIRES | B57: Autre
A58: AUTRE : HONORAIRES CONFERENCE TELEPHONIQUE | B58: Autre
A59: AUTRE : HONORAIRES ETUDES | B59: Autre
A60: AUTRE : HONORAIRES REUNION | B60: Autre
A61: AUTRE : HOSPITALITE CONGRES | B61: Congrès
A62: AUTRE : HOSPITALITE STAFF | B62: Hospitalité
A63: Autre : Indemnite | B63: Autre
A64: Autre : Inscription | B64: Inscription
A65: AUTRE : RELATIONS NORMALES DE TRAVAIL | B65: Autre
A66: AUTRE : REMBOURSEMENT DE FRAIS | B66: Autre
A67: AUTRE : REMUNERATION | B67: Autre
A68: AUTRE : REPAS PROFESSIONNEL | B68: Repas
A69: Autre : repas STAFF | B69: Repas
A70: AUTRE : REUNION | B70: Autre
A71: AUTRE : RNT | B71: Autre
A72: AUTRE : STAFF | B72: Repas
A73: AUTRE : STAND CONGRES | B73: Congrès
A74: AUTRE [DINER REUNION] | B74: Repas
A75: AUTRE [DONS] | B75: Autre
A76: AUTRE [ENQUETE] | B76: Autre
A77: AUTRE [FRAIS D INSCRIPTION] | B77: Inscription
A78: AUTRE [INSCRIPTION] | B78: Inscription
A79: AUTRE [PAUSE] | B79: Autre
A80: AUTRE [RESTAURATION STAFF] | B80: Repas
A81: AUTRE: [DON] | B81: Autre
A82: AUTRE: [DONS] | B82: Autre
A83: Autre: [Enquête] | B83: Autre
A84: AUTRE: [HEBERGEMENT ET RESTAURATIONS] | B84: Hébergement
A85: AUTRE: [INSCRIPTION] | B85: Inscription
A86: AUTRE: COLLATION | B86: Repas
A87: AUTRE: COLLATION/COLLATION | B87: Repas
A88: AUTRE: CONGRES/COCKTAIL | B88: Repas
A89: AUTRE: CONGRES/INSCRIPTION | B89: A définir
A90: AUTRE: DEJEUNER | B90: Repas
A91: AUTRE: DEJEUNER/DINER | B91: Repas
A92: AUTRE: DEJEUNER/RESTO ITALIEN BON | B92: Repas
A93: Autre: Don | B93: Autre
A94: AUTRE: HOSPITALITE | B94: Hospitalité
A95: AUTRE: INDEMNITE | B95: Autre
A96: AUTRE: INSCRIPTION | B96: Inscription
A97: Autre: Phone consult | B97: Autre
A98: AUTRE: SOIREE | B98: Hospitalité
A99: AUTRE: SOIREE/SOIREE | B99: Autre
A100: AUTRE: STAFF | B100: Repas
A101: AUTRE: VISITE/(2 X GO-ON 25MG) | B101: Autre
A102: AUTRE: VISITE/(3 X GO-ON 25MG) | B102: Autre
A103: AUTRE: VISITE/GO-ON 25MG | B103: Autre
A104: AUTRE:[FRAIS D'INSCRIPTION] | B104: Inscription
A105: Autre[HONORAIRES] | B105: Autre
A106: Autre[inscription congrès] | B106: Congrès
A107: AUTRES | B107: Autre
A108: AUTRES: INSCRIPTION | B108: Inscription
A109: CADEAUX | B109: Autre
A110: COLLATION | B110: Repas
A111: COLLATION/COLLATION | B111: Repas
A112: CONGRES/ACHEMINEMENT (AVION) | B112: Transport
A113: CONGRES/DEJEUNERS / DINERS (4) | B113: Repas
A114: CONGRES/HEBERGEMENT | B114: Hébergement
A115: CONGRES/HEBERGEMENT (1 NUITEES) | B115: Hébergement
A116: CONGRES/HEBERGEMENT (2 NUITEES) | B116: Hébergement
A117: CONGRES/HEBERGEMENT 3 NUITS | B117: Hébergement
A118: CONGRES/INSCRIPTION | B118: Inscription
A119: CONGRES/REPAS 12.06.13 | B119: Repas
A120: CONGRES/REPAS 13.06.13 | B120: Repas
A121: CONGRES/REPAS 14.06.13 | B121: Repas
A122: CONGRES/REPAS X3 | B122: Repas
A123: conseil | B123: Conseil
A124: Conseil - Intervention Ponctuelle | B124: Autre
A125: Dédommagement | B125: Autre
A126: DEJEUNER | B126: Repas
A127: déjeuner | B127: Repas
A128: DEJEUNER/DEJEUNER | B128: Repas
A129: DEJEUNER/REPAS | B129: Repas
A130: Déplacement | B130: Transport
A131: DINER | B131: Repas
A132: Dîner | B132: Repas
A133: DOCUMENTATION | B133: Autre
A134: Don | B134: Autre
A135: DONS | B135: Autre
A136: Dons de fonctionnement | B136: Autre
A137: DONS DE FONCTIONNEMENT (RÉMUNÉRATION LIÉE À DES ACTIVITÉS DE RECHERCHE) | B137: Autre
A138: DONS DE FONCTIONNEMENT / RECHERCHE | B138: Autre
A139: DONS DE MATERIEL | B139: Autre
A140: Dons de matériel | B140: Autre
A141: Droits d'auteur pris en charge par UCB | B141: Autre
A142: enquête | B142: Autre
A143: EPU | B143: Repas
A144: EPU/DINER | B144: Repas
A145: EPU/EPU | B145: Congrès
A146: EPU/REPAS | B146: Repas
A147: FRAIS DE BOUCHE | B147: Repas
A148: Frais de dÃƒÂ©placement | B148: Transport
A149: FRAIS DE DEPLACEMENT | B149: Transport
A150: FRAIS DE RESTAURATION | B150: Repas
A151: FRAIS D'HOSPITALITÉ | B151: Hospitalité
A152: FRAIS D'INSCRIPTION | B152: Inscription
A153: Frais d'inscription à une réunion scientifique | B153: Inscription
A154: FRAIS RELATIFS A LA RECHERCHE IMPLIQUANT LA PERSONNE HUMAINE | B154: Autre
A155: Frais remboursés (transport) | B155: Transport
A156: H‚bergement | B156: Hébergement
A157: HÃ©bergement | B157: Hébergement
A158: HÃ‰BERGEMENT | B158: Hébergement
A159: HÃƒÂ©bergement | B159: Hébergement
A160: HEBERGEMENT | B160: Hospitalité
A161: HEBERGEMENT | B161: Hébergement
A162: Hébergement | B162: Hébergement
A163: Hébérgement | B163: Hébergement
A164: HEBERGEMENT SUR TOUTE LA DUREE DU CONGRES | B164: Hébergement
A165: Hébergement, restauration, transport | B165: Hospitalité
A166: Honoraire + hospitalité | B166: Hospitalité
A167: HONORAIRE HCP | B167: Autre
A168: HONORAIRES | B168: Autre
A169: Honoraires de consultant | B169: Conseil
A170: HOSPITALITE | B170: Hospitalité
A171: HOSPITALITÉ | B171: Hospitalité
A172: HOSPITALITE - RELATIONS NORMALES DE TRAVAIL | B172: Hospitalité
A173: Hospitalité [ transport/repas/Hébergement] | B173: Hospitalité
A174: HOSPITALITE CONGRES | B174: Hospitalité
A175: Hospitalité Congrès Symposium | B175: Congrès
A176: HOSPITALITE REUNION PROFESSIONNELLE | B176: Hospitalité
A177: HOSPITALITE SITES PIERRE FABRE | B177: Hospitalité
A178: HOSPITALITE STAFF | B178: Hospitalité
A179: INCRIPTION | B179: Inscription
A180: INDEMNITE | B180: Autre
A181: INSCRIPTION | B181: Inscription
A182: INSCRIPTION CONGRES | B182: Inscription
A183: Inscription congrès | B183: Congrès
A184: Inscription Evenement Scientifique | B184: Inscription
A185: INSCRIPTION_REPAS_TRANSPORT_HEBERGEMENT | B185: Hospitalité
A186: INVITATIONS | B186: Autre
A187: Logement | B187: Hébergement
A188: OPPORTUNITE | B188: Autre
A189: Participation Evenement Scientifique | B189: Congrès
A190: PAUSE | B190: Autre
A191: Prestation en tant que formateur et orateur | B191: Autre
A192: REMUNERATION | B192: Autre
A193: REPAS | B193: Repas
A194: Repas | B194: Repas
A195: répas | B195: Repas
A196: Repas & Voyage de Train | B196: Hospitalité
A197: REPAS CONGRES | B197: Repas
A198: REPAS ET TRANSPORT | B198: Autre
A199: REPAS FORMATION | B199: Repas
A200: REPAS IMPROMPTU | B200: Repas
... 28 more rows

Sheet CONVENTIONS
A1: TYPE_CONVENTION dans Transparence.sante.gouv.fr | B1: TYPE_CONVENTION (libellé de regroupement)
A2: [AUTRE] : [COLLABORATION SCIENTIFIQUE] | B2: Expert
A3: [AUTRE] : [CONVENTION HOSPITALITE] | B3: Hospitalité
A4: [AUTRE] : [CONVENTION HOSPITALITE] | B4: Hospitalité
A5: [BOARD EXPERTS] | B5: Réunion de « Board »
A6: [FORMATION] | B6: Autre
A7: [MARKETING] | B7: Etude de marché
A8: [MARKETING] | B8: Etude de marché
A9: [ORATEUR] | B9: Orateur
A10: [ORATEURS MODERATEURS] | B10: Orateur
A11: [ORATEURS MODERATEURS] | B11: Orateur
A12: [REUNION INFORMATION MEDICALE] | B12: Réunion professionnelle
A13: 26E CONGRES FRANÇAIS DE RHUMATOLOGIE | B13: Réunion professionnelle
A14: ACCORD DE COOPERATION | B14: Expert
A15: Achat / location d'espaces dans le cadre d'événements scientifiques | B15: Autre
A16: Achat / location d'espaces dans le cadre d'événements scientifiques | B16: Autre
A17: AMERICAN COLLEGE OF RHEUMATHOLOGY ACR/ARHP ANNUAL MEETING 2012 | B17: Réunion professionnelle
A18: ANNUAL EUROPEAN CONGRESS OF RHEUMATOLOGY | B18: Réunion professionnelle
A19: ASSISES BARCELONE | B19: Réunion professionnelle
A20: ATELIERS SIMS | B20: Réunion professionnelle
A21: AUTRE | B21: Autre
A22: AUTRE | B22: Autre
A23: Autre : | B23: Autre
A24: Autre : "CONTRAT D'ORATEUR" | B24: Orateur
A25: Autre : [ Collaboration Scientifique ] | B25: Expert
A26: Autre : [ Collaboration Scientifique ] | B26: Expert
A27: AUTRE : [ CONSEIL / EXPERTISE SCIENTIFIQUE ] | B27: Conseil
A28: Autre : [ EPU ] | B28: Réunion professionnelle
A29: Autre : [ EPU ] | B29: Réunion professionnelle
A30: Autre : [ Expert ] | B30: Expert
A31: Autre : [ Expert ] | B31: Expert
A32: AUTRE : [ HOSPITALITE ] | B32: Hospitalité
A33: AUTRE : [ HOSPITALITE ] | B33: Hospitalité
A34: Autre : [ hospitalité ] | B34: Hospitalité
A35: Autre : [ hospitalité liée à une manifestation scientifique ] | B35: Hospitalité
A36: Autre : [ hospitalité liée à une manifestation scientifique ] | B36: Hospitalité
A37: Autre : [ Manifestation professionnelle ] | B37: Réunion professionnelle
A38: Autre : [ Manifestation professionnelle ] | B38: Réunion professionnelle
A39: Autre : [ Orateur / Intervenant ] | B39: Orateur
A40: Autre : [ Orateur / Intervenant ] | B40: Orateur
A41: Autre : [ Orateur ] | B41: Orateur
A42: Autre : [ Partenariat ] | B42: Autre
A43: Autre : [ Prestation ] | B43: Conseil
A44: Autre : [ R‚union professionnelle ] | B44: Réunion professionnelle
A45: Autre : [ R‚union professionnelle ] | B45: Réunion professionnelle
A46: Autre : [ Runion professionnelle ] | B46: Réunion professionnelle
A47: Autre : [ Runion professionnelle ] | B47: Réunion professionnelle
A48: Autre : [ Reunion professionnelle ] | B48: Réunion professionnelle
A49: Autre : [ Réunion professionnelle ] | B49: Réunion professionnelle
A50: Autre : [ Reunion professionnelle ] | B50: Réunion professionnelle
A51: Autre : [ Réunion professionnelle ] | B51: Réunion professionnelle
A52: Autre : [AUTRE] : [CONTRAT DE COLLABORATION] | B52: Autre
A53: Autre : [AUTRE] : [CONVENTION HOSPITALITE] | B53: Hospitalité
A54: Autre : [BOARD EXPERTS] | B54: Expert
A55: Autre : [collaboration scientifique] | B55: Expert
A56: Autre : [Communication scientifique] | B56: Expert
A57: Autre : [Communication scientifique] | B57: Conseil
A58: Autre : [Consultant (HCP)] | B58: Conseil
A59: Autre : [Consultant (HCP)] | B59: Conseil
A60: Autre : [Consultant] | B60: Conseil
A61: Autre : [Contrat autre] | B61: Autre
A62: Autre : [Contrat autre] | B62: Autre
A63: AUTRE : [CONTRAT DE COLLABORATION SCIENTIFIQUE] | B63: Expert
A64: AUTRE : [CONTRAT DE COLLABORATION SCIENTIFIQUE] | B64: Expert
A65: AUTRE : [CONTRAT DE CONSEIL & PRESTATION] | B65: Conseil
A66: AUTRE : [CONTRAT DE CONSEIL & PRESTATION] | B66: Conseil
A67: Autre : [Contrat de consultant] | B67: Conseil
A68: AUTRE : [CONTRAT DE PARTENARIAT - LOCATION DE STAND] | B68: Réunion professionnelle
A69: AUTRE : [CONTRAT DE PARTENARIAT - LOCATION DE STAND] | B69: Réunion professionnelle
A70: AUTRE : [CONTRAT DE PARTENARIAT] | B70: Autre
A71: AUTRE : [CONTRAT D'ORATEUR] | B71: Orateur
A72: AUTRE : [CONTRAT D'ORATEUR] | B72: Orateur
A73: Autre : [CONTRAT ORATEUR] | B73: Orateur
A74: Autre : [CONTRAT_DE_PRESTATIONS_DE_SERVICES] | B74: Conseil
A75: AUTRE : [CONVENTION D HOSPITALITE] | B75: Hospitalité
A76: AUTRE : [CONVENTION D HOSPITALITE] | B76: Hospitalité
A77: Autre : [Convention d’Hospitalité] | B77: Hospitalité
A78: Autre : [Convention de consultant] | B78: Conseil
A79: Autre : [CONVENTION D'HOSPITALITE] | B79: Hospitalité
A80: Autre : [Convention d'Hospitalité] | B80: Hospitalité
A81: Autre : [CONVENTION D'HOSPITALITE] | B81: Hospitalité
A82: Autre : [Convention d'hospitalité] | B82: Hospitalité
A83: AUTRE : [CONVENTION HOSPITALITE] | B83: Hospitalité
A84: Autre : [Convention Orateur] | B84: Orateur
A85: AUTRE : [CONVENTION SANS REMUNERATION]. | B85: Autre
A86: AUTRE : [DONS] | B86: Autre
A87: Autre : [entretien] | B87: Etude de marché
A88: Autre : [entretien] | B88: Etude de marché
A89: Autre : [Espace publicitaire] | B89: Autre
A90: Autre : [Espace publicitaire] | B90: Autre
A91: AUTRE : [ETUDE CLINIQUE] | B91: Recherche Clinique
A92: Autre : [EXPERT CONSULTANT] | B92: Expert
A93: Autre : [Expertise] | B93: Expert
A94: Autre : [Face face] | B94: Autre
A95: AUTRE : [HOSPITALITÉ EVENEMENT SCIENTIFIQUE] | B95: Hospitalité
A96: Autre : [Hospitalité Evenement] | B96: Hospitalité
A97: AUTRE : [HOSPITALITE EVENEMENT] | B97: Hospitalité
A98: Autre : [Hospitalité Evenement] | B98: Hospitalité
A99: Autre : [Hospitalité Genzyme] | B99: Hospitalité
A100: Autre : [Hospitalité] | B100: Hospitalité
A101: AUTRE : [INTERVENANT] | B101: A définir
A102: AUTRE : [INTERVENANT] | B102: Orateur
A103: Autre : [Invitation individuelle] | B103: Autre
A104: Autre : [Invitation individuelle] | B104: Autre
A105: Autre : [Location de stand / Congrès / Autre] | B105: Réunion professionnelle
A106: Autre : [Marketing] | B106: Etude de marché
A107: Autre : [Marketing] | B107: Etude de marché
A108: Autre : [Opération SA/Journée-Soirée] | B108: Autre
A109: Autre : [Opérations Genzyme] | B109: Autre
A110: Autre : [Orateur] | B110: Orateur
A111: Autre : [Orateur] | B111: Orateur
A112: Autre : [ORATEURS MODERATEURS] | B112: Orateur
A113: AUTRE : [PARTENARIAT] | B113: Autre
A114: AUTRE : [PARTICIPATION RÉUNION SCIENTIFIQUE] | B114: Réunion professionnelle
A115: AUTRE : [PARTICIPATION RÉUNION SCIENTIFIQUE] | B115: Réunion professionnelle
A116: AUTRE : [PARTICIPATION R�ION SCIENTIFIQUE] | B116: Réunion professionnelle
A117: AUTRE : [PARTICIPATION R�ION SCIENTIFIQUE] | B117: Réunion professionnelle
A118: AUTRE : [PRESTATION DE SERVICE] | B118: Conseil
A119: Autre : [Recherche biomédicale] | B119: Recherche Clinique
A120: Autre : [Recherche biomédicale] | B120: Recherche Clinique
A121: Autre : [Recherche/Développement] | B121: Recherche Clinique
A122: Autre : [Recherche/Développement] | B122: Recherche Clinique
A123: Autre : [Rédaction d'articles scientifiques] | B123: Rédacteur
A124: Autre : [Repas] | B124: Hospitalité
A125: Autre : [Réunion] | B125: Réunion professionnelle
A126: Autre : [Réunion] | B126: Réunion professionnelle
A127: Autre : [RP Prédéclarée Hospitalité] | B127: Hospitalité
A128: AUTRE : [RP Table ronde actu Rhumatologie] | B128: Réunion professionnelle
A129: AUTRE : [RP TFI] | B129: Orateur
A130: Autre : [STAFF] | B130: Réunion professionnelle
A131: Autre : [STAFF] | B131: Réunion professionnelle
A132: AUTRE : [STAND/TABLE] | B132: Réunion professionnelle
A133: Autre : 3116001; site 101; | B133: Autre
A134: Autre : Accord d'Orateur | B134: Orateur
A135: Autre : Accord d'Orateur | B135: Orateur
A136: Autre : Auteur - rédacteur | B136: Rédacteur
A137: Autre : AUTRE | B137: Autre
A138: Autre : AUTRE | B138: Autre
A139: Autre : AUTRE / HOSPITALITES | B139: Hospitalité
A140: Autre : AUTRE / STAND | B140: Réunion professionnelle
A141: Autre : AUTRE / STAND | B141: Autre
A142: Autre : AUTRE : [ CONSEIL / EXPERTISE SCIENTIFIQUE ] | B142: Conseil
A143: Autre : Autre : [ EPU ] | B143: Réunion professionnelle
A144: Autre : Autre : [ Expert ] | B144: Expert
A145: Autre : Autre : [ Expert ] | B145: Expert
A146: Autre : AUTRE : [ HOSPITALITE ] | B146: Hospitalité
A147: Autre : Autre : [ hospitalité liée à une manifestation scientifique ] | B147: Hospitalité
A148: Autre : Autre : [ Location de stand ] | B148: Réunion professionnelle
A149: Autre : Autre : [ Manifestation professionnelle ] | B149: Réunion professionnelle
A150: Autre : Autre : [ Manifestation professionnelle ] | B150: Réunion professionnelle
A151: Autre : Autre : [ Orateur / Intervenant ] | B151: Orateur
A152: Autre : Autre : [ Orateur / Intervenant ] | B152: Orateur
A153: Autre : Autre : [ Parrainage ] | B153: Autre
A154: Autre : Autre : [ Partenariat ] | B154: Autre
A155: Autre : AUTRE : [ RECHERCHE SCIENTIFIQUE ] | B155: Recherche Clinique
A156: Autre : Autre : [ Reunion professionnelle ] | B156: Réunion professionnelle
A157: Autre : Autre : [ Réunion professionnelle ] | B157: Réunion professionnelle
A158: Autre : Autre : [ Reunion professionnelle ] | B158: Réunion professionnelle
A159: Autre : Autre : [ Réunion professionnelle ] | B159: Réunion professionnelle
A160: Autre : Autre : [Autre] | B160: Autre
A161: Autre : Autre : [collaboration scientifique à titre gratuit] | B161: Expert
A162: Autre : Autre : [Collaboration Scientifique non remuneree] | B162: Expert
A163: Autre : AUTRE : [COLLABORATION SCIENTIFIQUE] | B163: Expert
A164: Autre : Autre : [Collaboration Scientifique] | B164: Expert
A165: Autre : Autre : [Communication scientifique] | B165: Expert
A166: Autre : Autre : [Communication scientifique] | B166: Expert
A167: Autre : Autre : [Conseil communication] | B167: Conseil
A168: Autre : Autre : [Consultant (HCP)] | B168: Conseil
A169: Autre : Autre : [Consultant (HCP)] | B169: Conseil
A170: Autre : AUTRE : [CONSULTANT] | B170: Conseil
A171: Autre : Autre : [Contrat autre] | B171: Autre
A172: Autre : AUTRE : [CONTRAT DE COLLABORATION SCIENTIFIQUE] | B172: Expert
A173: Autre : AUTRE : [CONTRAT DE COLLABORATION] | B173: Expert
A174: Autre : Autre : [Contrat de conseil & prestation] | B174: Conseil
A175: Autre : AUTRE : [CONTRAT DE CONSEIL & PRESTATION] | B175: Conseil
A176: Autre : Autre : [Contrat de conseilprestation] | B176: Conseil
A177: Autre : Autre : [CONTRAT DE CONSULTANT] | B177: Conseil
A178: Autre : AUTRE : [CONTRAT DE PARTENARIAT - LOCATION DE STAND] | B178: Réunion professionnelle
A179: Autre : AUTRE : [CONTRAT DE PARTENARIAT] | B179: Autre
A180: Autre : Autre : [Contrat de recherche] | B180: Recherche Clinique
A181: Autre : AUTRE : [CONTRAT D'ORATEUR] | B181: Orateur
A182: Autre : Autre : [CONTRAT_DE_PRESTATIONS_DE_SERVICES] | B182: Conseil
A183: Autre : Autre : [Convention d ’Hospitalite] | B183: Hospitalité
A184: Autre : AUTRE : [CONVENTION D HOSPITALITE] | B184: Hospitalité
A185: Autre : Autre : [Convention d’Hospitalite] | B185: Hospitalité
A186: Autre : Autre : [Convention d’Hospitalite] | B186: Hospitalité
A187: Autre : Autre : [Convention d’Hospitalité] | B187: Hospitalité
A188: Autre : Autre : [Convention dHospitalité] | B188: Hospitalité
A189: Autre : Autre : [Convention de partenariat] | B189: Autre
A190: Autre : Autre : [CONVENTION D'HOSPITALITE] | B190: Hospitalité
A191: Autre : Autre : [Convention d'Hospitalité] | B191: Hospitalité
A192: Autre : AUTRE : [CONVENTION HOSPITALITE] | B192: Hospitalité
A193: Autre : Autre : [Convention mécénat] | B193: Autre
A194: Autre : Autre : [Convention mécénat] | B194: Autre
A195: Autre : Autre : [Conventiond'hospitalité] | B195: Hospitalité
A196: Autre : AUTRE : [DROIT A L IMAGE] | B196: Autre
A197: Autre : Autre : [entretien] | B197: Etude de marché
A198: Autre : Autre : [entretien] | B198: Etude de marché
A199: Autre : AUTRE : [ETUDE CLINIQUE] | B199: Recherche Clinique
A200: Autre : Autre : [EXPERT CONSULTANT] | B200: Expert
... 586 more rows

Sheet FIRMES
A1: FIRME dans Transparence.sante.gouv.fr | B1: FIRME (libellé de regroupement)
A2: 22 Juillet Conseil | B2: 22 Juillet Conseil
A3: 3-D Matrix Europe SAS | B3: 3-D Matrix Europe SAS
A4: 3M Belgium bvba/sprl | B4: 3M Belgium bvba/sprl
A5: 3M Deutschland GmbH | B5: 3M Deutschland GmbH
A6: 3M France | B6: 3M France
A7: 3M MAROC | B7: 3M MAROC
A8: 3M United Kingdom PLC | B8: 3M United Kingdom PLC
A9: 3S ORTHO | B9: 3S ORTHO
A10: 4Tech Cardio Ltd | B10: 4Tech Cardio Ltd
A11: 7 MED INDUSTRIE | B11: 7 MED INDUSTRIE
A12: A a Z SANTE | B12: A a Z SANTE
A13: A DEC INTERNATIONAL INC | B13: A DEC INTERNATIONAL INC
A14: A.I.R. | B14: A.I.R.
A15: A.MENARINI diagnostics | B15: A.MENARINI diagnostics
A16: A.R.C. Pharma | B16: A.R.C. Pharma
A17: A+A | B17: A+A
A18: a2m rehateam | B18: a2m rehateam
A19: AADAIRC | B19: AADAIRC
A20: ABBOTT FRANCE | B20: ABBOTT
A21: ABBOTT HEALTHCARE SAS | B21: ABBOTT
A22: ABBOTT PRODUCTS SAS | B22: ABBOTT
A23: AbbVie | B23: AbbVie
A24: ABENA-FRANTEX | B24: ABENA-FRANTEX
A25: Abiomed GmbH | B25: Abiomed GmbH
A26: ABM | B26: ABM
A27: abmedica | B27: abmedica
A28: ABS-Bolton Medical | B28: ABS-Bolton Medical
A29: accomed | B29: accomed
A30: ACCORD HEALTHCARE FRANCE SAS | B30: ACCORD HEALTHCARE FRANCE SAS
A31: ACCOVION SARL | B31: ACCOVION SARL
A32: Accuray Europe | B32: Accuray Europe
A33: ACIST Europe BV | B33: ACIST Europe BV
A34: ACM | B34: ACM
A35: Acorda Therapeutics, Inc. | B35: Acorda Therapeutics, Inc.
A36: ACOUSTIQUE MEDICAL DU LITTORAL | B36: ACOUSTIQUE MEDICAL DU LITTORAL
A37: ACS-Agence Conseil Santé | B37: ACS-Agence Conseil Santé
A38: ACS-Agence Conseil Santé | B38: ACS-Agence Conseil Santé
A39: ACT+ Consulting | B39: ACT+ Consulting
A40: ACTAVIS GROUP PTC EHF | B40: ACTAVIS GROUP PTC EHF
A41: Actelion Pharmaceuticals France | B41: Actelion
A42: Actelion Pharmaceuticals Ltd | B42: Actelion
A43: ACTION D'ECLAT | B43: ACTION D'ECLAT
A44: ADAIR | B44: ADAIR
A45: ADAPSIA | B45: ADAPSIA
A46: Adaptimmune LTD | B46: Adaptimmune LTD
A47: ADARE PHARMACEUTICALS SAS | B47: ADARE PHARMACEUTICALS SAS
A48: ADDMEDICA | B48: ADDMEDICA
A49: ADEP ASSISTANCE | B49: ADEP ASSISTANCE
A50: Adept Field Solutions | B50: Adept Field Solutions
A51: ADIR ASSISTANCE | B51: ADIR ASSISTANCE
A52: Adiral Assistance | B52: Adiral Assistance
A53: ADIRAL Association d'Aide aux Traitements À Domicile | B53: ADIRAL Association d'Aide aux Traitements À Domicile
A54: ADLER ORTHO France | B54: ADLER ORTHO France
A55: Adler Ortho srl | B55: Adler Ortho srl
A56: ADS ALSACE | B56: ADS ALSACE
A57: ADS CHAMPAGNE ARDENNE | B57: ADS CHAMPAGNE ARDENNE
A58: ADS LORRAINE | B58: ADS LORRAINE
A59: ADVANCE SAS | B59: ADVANCE SAS
A60: Advanced Accelerator Applications | B60: Advanced Accelerator Applications
A61: Advanced Accelerator Applications International SA | B61: Advanced Accelerator Applications International SA
A62: ADVANCED BIONICS SARL | B62: ADVANCED BIONICS SARL
A63: Advanced Medical Services, AMS GmbH | B63: Advanced Medical Services, AMS GmbH
A64: ADVICENNE | B64: ADVICENNE
A65: Aegerion Pharmaceuticals | B65: Aegerion Pharmaceuticals
A66: Aepodia France SARL | B66: Aepodia France SARL
A67: AERIS Medical SAS | B67: AERIS Medical SAS
A68: AEROGEN | B68: AEROGEN
A69: AFFINITES SANTE | B69: AFFINITES SANTE
A70: Agence Conseil 3P | B70: Agence Conseil 3P
A71: agence européenne informatique | B71: agence européenne informatique
A72: Agfa HealthCare France SA | B72: Agfa HealthCare France SA
A73: AGFA Healthcare Imaging Agents France | B73: AGFA Healthcare Imaging Agents France
A74: AGILENT TECHNOLOGIES FRANCE | B74: AGILENT TECHNOLOGIES FRANCE
A75: AGIR À dom Assistance | B75: AGIR À dom Assistance
A76: Aide aux Insuffisants Respiratoires de la Région Auvergne (A.I.R.R.A.) | B76: Aide aux Insuffisants Respiratoires de la Région Auvergne (A.I.R.R.A.)
A77: Aide aux Insuffisants Respiratoires de la Région Auvergne (A.I.R.R.A.) | B77: Aide aux Insuffisants Respiratoires de la Région Auvergne (A.I.R.R.A.)
A78: AIR A DOMICILE | B78: AIR A DOMICILE
A79: AIR DE BRETAGNE | B79: AIR DE BRETAGNE
A80: AIR DOMICILE SANTE ALPES | B80: AIR DOMICILE SANTE ALPES
A81: AIR DOMICILE VALLEE DU RHONE | B81: AIR DOMICILE VALLEE DU RHONE
A82: Air Liquide European Homecare Operations Services | B82: Air Liquide European Homecare Operations Services
A83: AIR LIQUIDE MEDICAL SYSTEMS | B83: AIR LIQUIDE MEDICAL SYSTEMS
A84: AIR LIQUIDE SANTE (INTERNATIONAL) | B84: AIR LIQUIDE SANTE (INTERNATIONAL)
A85: AIR LIQUIDE SANTE FRANCE | B85: AIR LIQUIDE SANTE FRANCE
A86: AIR SANTE | B86: AIR SANTE
A87: AIRE | B87: AIRE
A88: AIREL | B88: AIREL
A89: AIXIAL | B89: AIXIAL
A90: AIXPER'F | B90: AIXPER'F
A91: AJ4MED | B91: AJ4MED
A92: ALAIN AFFLELOU FRANCHISEUR | B92: ALAIN AFFLELOU FRANCHISEUR
A93: ALAIR & AVD | B93: ALAIR & AVD
A94: Alcimed GmbH | B94: Alcimed GmbH
A95: Alcimed Inc | B95: Alcimed Inc
A96: Alcimed SARL | B96: Alcimed SARL
A97: Alcimed SAS | B97: Alcimed SAS
A98: Alcimed Sprl | B98: Alcimed Sprl
A99: Alcura France | B99: Alcura France
A100: ALERE E-SANTE SAS | B100: ALERE E-SANTE SAS
A101: ALERE SAS | B101: ALERE SAS
A102: Alexion Pharma France | B102: Alexion Pharma France
A103: ALFA WASSERMANN PHARMA | B103: ALFA WASSERMANN PHARMA
A104: Align Technology SAS | B104: Align Technology SAS
A105: Alimera Sciences France | B105: Alimera Sciences France
A106: ALISEO | B106: ALISEO
A107: Alizé Pharma SAS | B107: Alizé Pharma SAS
A108: Alizé Pharma SAS | B108: Alizé Pharma SAS
A109: Alizé Santé | B109: Alizé Santé
A110: Alizé Santé | B110: Alizé Santé
A111: ALK-Abelló | B111: ALK-Abelló
A112: ALK-AbellÓ | B112: ALK-AbellÓ
A113: ALKAPHARM | B113: ALKAPHARM
A114: All Global | B114: All Global
A115: ALLERGAN FRANCE | B115: ALLERGAN FRANCE
A116: alliance healthcare repartition | B116: alliance healthcare repartition
A117: ALLIANCE PHARMA FRANCE | B117: ALLIANCE PHARMA FRANCE
A118: ALLIANCE'PERF | B118: ALLIANCE'PERF
A119: ALLP MEDITEC | B119: ALLP MEDITEC
A120: ALMIRALL SAS | B120: ALMIRALL SAS
A121: ALMUS | B121: ALMUS
A122: ALPHATEC SPINE INC | B122: ALPHATEC SPINE INC
A123: ALPHEGA | B123: ALPHEGA
A124: ALPINE SCIENTIFIC | B124: ALPINE SCIENTIFIC
A125: ALSANZA sarl | B125: ALSANZA sarl
A126: ALTEOR | B126: ALTEOR
A127: alveol'air | B127: alveol'air
A128: ALVIMEDICA Medical Technologie France | B128: ALVIMEDICA Medical Technologie France
A129: AM AUDITION | B129: AM AUDITION
A130: AMADEUS SANTE | B130: AMADEUS SANTE
A131: AMB-I SANTE PROVENCE | B131: AMB-I SANTE PROVENCE
A132: AMC APPAREILLAGE ET MATERIEL DE CARDIOLOGIE | B132: AMC APPAREILLAGE ET MATERIEL DE CARDIOLOGIE
A133: American Medical Systems France | B133: American Medical Systems France
A134: American Orthodontics | B134: American Orthodontics
A135: AMGEN SAS | B135: Amgen
A136: AMICUS THERAPEUTICS SAS | B136: AMICUS THERAPEUTICS SAS
A137: AMO FRANCE SAS | B137: AMO FRANCE SAS
A138: AMO Germany GmbH | B138: AMO Germany GmbH
A139: AMO INC USA | B139: AMO INC USA
A140: Amplifon Groupe France | B140: Amplifon Groupe France
A141: AMPLITUDE | B141: AMPLITUDE
A142: AMS 25 | B142: AMS 25
A143: AMS 70 | B143: AMS 70
A144: AMS 88 | B144: AMS 88
A145: ANERA | B145: ANERA
A146: ANNAYAKE | B146: ANNAYAKE
A147: ANTADIR | B147: ANTADIR
A148: Antadir Assistance SAS | B148: Antadir Assistance SAS
A149: ANTHOGYR | B149: ANTHOGYR
A150: ANTILLES AUDITION GUADELOUPE | B150: ANTILLES AUDITION GUADELOUPE
A151: AOTI Ltd | B151: AOTI Ltd
A152: APARD | B152: APARD
A153: apol | B153: apol
A154: APOLLO ENDOSURGERY UK LTD | B154: APOLLO ENDOSURGERY UK LTD
A155: Applied Medical France | B155: Applied Medical France
A156: APROVA | B156: APROVA
A157: APTALIS PHARMA SAS | B157: APTALIS PHARMA SAS
A158: Aptiv Solutions | B158: Aptiv Solutions
A159: AQUILAB | B159: AQUILAB
A160: ARAIR Assistance | B160: ARAIR Assistance
A161: ARAIR Assistance S.A. | B161: ARAIR Assistance S.A.
A162: ARAIRCHAR | B162: ARAIRCHAR
A163: arard | B163: arard
A164: ARCHIMEDES PHARMA France | B164: ARCHIMEDES PHARMA France
A165: ARCOS | B165: ARCOS
A166: ARGON MEDICAL DEVICES | B166: ARGON MEDICAL DEVICES
A167: ARIAD Pharmaceuticals (France) | B167: ARIAD Pharmaceuticals (France)
A168: ARJOHUNTLEIGH | B168: ARJOHUNTLEIGH
A169: ARROW GENERIQUES SAS | B169: ARROW GENERIQUES SAS
A170: ARSENAL-CDM | B170: ARSENAL-CDM
A171: ART&COS | B171: ART&COS
A172: ARTHES | B172: ARTHES
A173: Arthrex SAS | B173: Arthrex SAS
A174: Arthritis Fondation Courtin | B174: Arthritis Fondation Courtin
A175: ArthroCare France | B175: ArthroCare France
A176: Artialis | B176: Artialis
A177: ARX SAS | B177: ARX SAS
A178: ASAHI INTECC CO., LTD. | B178: ASAHI INTECC CO., LTD.
A179: Ascensia Diabetes Care France | B179: Ascensia Diabetes Care France
A180: ASDIA | B180: ASDIA
A181: Asept InMed | B181: Asept InMed
A182: ASKLE SANTE | B182: ASKLE SANTE
A183: ASPEN FRANCE | B183: ASPEN FRANCE
A184: ASPIDE AESTHETIC | B184: ASPIDE AESTHETIC
A185: ASPIDE MEDICAL | B185: ASPIDE MEDICAL
A186: ASSISTANCE DU GRAND EST | B186: ASSISTANCE DU GRAND EST
A187: ASSISTANCES MEDICALES SPECIALISEES | B187: ASSISTANCES MEDICALES SPECIALISEES
A188: Association Françoise et Eugène MINKOWSKI pour la santé mentale des migrants | B188: Association Françoise et Eugène MINKOWSKI pour la santé mentale des migrants
A189: Association Françoise et Eugène MINKOWSKI pour la santé mentale des migrants | B189: Association Françoise et Eugène MINKOWSKI pour la santé mentale des migrants
A190: Association pour le Développement de l'Enseignement et des Recherches auprès des universités des centres de recherches et des entreprises d'Aquitaine (ADERA) | B190: Association pour le Développement de l'Enseignement et des Recherches auprès des universités des centres de recherches et des entreprises d'Aquitaine (ADERA)
A191: Association pour le Développement de l'Enseignement et des Recherches auprès des universités des centres de recherches et des entreprises d'Aquitaine (ADERA) | B191: Association pour le Développement de l'Enseignement et des Recherches auprès des universités des centres de recherches et des entreprises d'Aquitaine (ADERA)
A192: ASTELLAS PHARMA | B192: ASTELLAS PHARMA
A193: ASTELLAS PHARMA B.V. | B193: ASTELLAS PHARMA B.V.
A194: ASTELLAS PHARMA GLOBAL DEVELOPMENT | B194: ASTELLAS PHARMA GLOBAL DEVELOPMENT
A195: ASTELLAS PHARMA GmbH | B195: ASTELLAS PHARMA GmbH
A196: ASTELLAS PHARMA Inc | B196: ASTELLAS PHARMA Inc
A197: ASTELLAS PHARMA Ltd | B197: ASTELLAS PHARMA Ltd
A198: ASTELLAS PHARMA S.A. | B198: ASTELLAS PHARMA S.A.
A199: Astellas Pharma Singapore Pte. Ltd. | B199: Astellas Pharma Singapore Pte. Ltd.
A200: ASTELLAS PHARMACEUTICALS AE | B200: ASTELLAS PHARMACEUTICALS AE
... 1909 more rows

Sheet Conception
B2: Concepteur :
D4: François PESTY
D5: Pharmacien, Ancien Interne des Hôpitaux de Paris, Institut Supérieur de Gestion,
D6: Consultant indépendant,
D7: Expert-Conseil en organisation et informatisation du circuit du médicament / Optimisation des approvisionnements et des stocks pharmaceutiques / Pilotage « médico-économique » des médicaments et dispositifs médicaux / Campagne « pilotes » de visites médicalisées des délégués de l’assurance maladie sur le médicament / Pertinence des traitements médicamenteux
D12: 2, square Gay Lussac
D13: 78330 Fontenay le Fleury
D14: Francois.PESTY@Wanadoo.fr
D15: 01 30 45 03 59 / 06 88 89 53 51
B18: François PESTY est membre de l'association FORMINDEP,

Sheet Rémunérations
A1: Entreprise | B1: Type de bénéficiaire | C1: Bénéficiaire | D1: Date | E1: Montant
A2: SANOFI-AVENTIS RECHERCHE & DEVELOPPEMENT | B2: Etablissement de santé | C2: INSTITUT GUSTAVE ROUSSY | D2: 14/01/2013 | E2: 15000
A3: SANOFI-AVENTIS RECHERCHE & DEVELOPPEMENT | B3: Etablissement de santé | C3: INSTITUT GUSTAVE ROUSSY | D3: 17/01/2013 | E3: 4552
A4: SANOFI-AVENTIS RECHERCHE & DEVELOPPEMENT | B4: Etablissement de santé | C4: INSTITUT GUSTAVE ROUSSY | D4: 21/01/2013 | E4: 39296
A5: SANOFI-AVENTIS GROUPE | B5: Etablissement de santé | C5: INSTITUT GUSTAVE ROUSSY | D5: 2013-04-02 | E5: 2392
A6: SANOFI AVENTIS FRANCE | B6: Etablissement de santé | C6: INSTITUT GUSTAVE ROUSSY | D6: 2013-07-02 | E6: 18090
A7: SANOFI-AVENTIS RECHERCHE & DEVELOPPEMENT | B7: Etablissement de santé | C7: INSTITUT GUSTAVE ROUSSY | D7: 14/02/2013 | E7: 21606
A8: SANOFI-AVENTIS RECHERCHE & DEVELOPPEMENT | B8: Etablissement de santé | C8: INSTITUT GUSTAVE ROUSSY | D8: 14/02/2013 | E8: 21606
A9: SANOFI-AVENTIS RECHERCHE & DEVELOPPEMENT | B9: Etablissement de santé | C9: INSTITUT GUSTAVE ROUSSY | D9: 21/03/2013 | E9: 400
A10: SANOFI-AVENTIS RECHERCHE & DEVELOPPEMENT | B10: Etablissement de santé | C10: INSTITUT GUSTAVE ROUSSY | D10: 29/03/2013 | E10: 1950
A11: ONXEO | B11: Etablissement de santé | C11: GUSTAVE ROUSSY | D11: 16/04/2013 | E11: 23920
A12: SANOFI-AVENTIS RECHERCHE & DEVELOPPEMENT | B12: Etablissement de santé | C12: INSTITUT GUSTAVE ROUSSY | D12: 2013-02-05 | E12: 21606
A13: SANOFI-AVENTIS RECHERCHE & DEVELOPPEMENT | B13: Etablissement de santé | C13: INSTITUT GUSTAVE ROUSSY | D13: 2013-06-05 | E13: 11960
A14: SANOFI AVENTIS FRANCE | B14: Etablissement de santé | C14: INSTITUT GUSTAVE ROUSSY | D14: 16/05/2013 | E14: 3552
A15: SANOFI-AVENTIS RECHERCHE & DEVELOPPEMENT | B15: Etablissement de santé | C15: INSTITUT GUSTAVE ROUSSY | D15: 16/05/2013 | E15: 2000
A16: ONXEO | B16: Etablissement de santé | C16: GUSTAVE ROUSSY | D16: 28/06/2013 | E16: 300
A17: SANOFI-AVENTIS RECHERCHE & DEVELOPPEMENT | B17: Etablissement de santé | C17: INSTITUT GUSTAVE ROUSSY | D17: 2013-04-07 | E17: 17940
A18: SANOFI-AVENTIS RECHERCHE & DEVELOPPEMENT | B18: Etablissement de santé | C18: INSTITUT GUSTAVE ROUSSY | D18: 22/07/2013 | E18: 1196
A19: SANOFI-AVENTIS RECHERCHE & DEVELOPPEMENT | B19: Etablissement de santé | C19: INSTITUT GUSTAVE ROUSSY | D19: 2013-05-08 | E19: 11960
A20: SANOFI-AVENTIS RECHERCHE & DEVELOPPEMENT | B20: Etablissement de santé | C20: INSTITUT GUSTAVE ROUSSY | D20: 29/08/2013 | E20: 17940
A21: Orion Corporation Orion Pharma | B21: Etablissement de santé | C21: INSTITUT GUSTAVE ROUSSY | D21: 2013-03-09 | E21: 40075
A22: Orion Corporation Orion Pharma | B22: Etablissement de santé | C22: INSTITUT GUSTAVE ROUSSY | D22: 2013-07-10 | E22: 1760
A23: Orion Corporation Orion Pharma | B23: Etablissement de santé | C23: INSTITUT GUSTAVE ROUSSY | D23: 2013-07-10 | E23: 1408
A24: Orion Corporation Orion Pharma | B24: Etablissement de santé | C24: INSTITUT GUSTAVE ROUSSY | D24: 2013-07-10 | E24: 1320
A25: Orion Corporation Orion Pharma | B25: Etablissement de santé | C25: INSTITUT GUSTAVE ROUSSY | D25: 2013-07-10 | E25: 14314
A26: SANOFI-AVENTIS RECHERCHE & DEVELOPPEMENT | B26: Etablissement de santé | C26: INSTITUT GUSTAVE ROUSSY | D26: 2013-10-10 | E26: 3900
A27: ONXEO | B27: Etablissement de santé | C27: GUSTAVE ROUSSY | D27: 16/10/2013 | E27: 19836
A28: SANOFI AVENTIS FRANCE | B28: Etablissement de santé | C28: INSTITUT GUSTAVE ROUSSY | D28: 24/10/2013 | E28: 45783
A29: SANOFI AVENTIS FRANCE | B29: Etablissement de santé | C29: INSTITUT GUSTAVE ROUSSY | D29: 29/10/2013 | E29: 3465
A30: SANOFI-AVENTIS RECHERCHE & DEVELOPPEMENT | B30: Etablissement de santé | C30: INSTITUT GUSTAVE ROUSSY | D30: 2013-07-11 | E30: 19648
A31: SANOFI AVENTIS FRANCE | B31: Etablissement de santé | C31: INSTITUT GUSTAVE ROUSSY | D31: 2013-07-11 | E31: 34271
A32: SANOFI AVENTIS FRANCE | B32: Etablissement de santé | C32: INSTITUT GUSTAVE ROUSSY | D32: 21/11/2013 | E32: 41705
A33: SANOFI AVENTIS FRANCE | B33: Etablissement de santé | C33: INSTITUT GUSTAVE ROUSSY | D33: 21/01/2014 | E33: 16334
A34: SANOFI AVENTIS FRANCE | B34: Etablissement de santé | C34: INSTITUT GUSTAVE ROUSSY | D34: 21/01/2014 | E34: 18182
A35: SANOFI-AVENTIS RECHERCHE & DEVELOPPEMENT | B35: Etablissement de santé | C35: INSTITUT GUSTAVE ROUSSY | D35: 28/01/2014 | E35: 10869
A36: SANOFI-AVENTIS RECHERCHE & DEVELOPPEMENT | B36: Etablissement de santé | C36: INSTITUT GUSTAVE ROUSSY | D36: 28/01/2014 | E36: 10869
A37: Bayer HealthCare SAS | B37: Etablissement de santé | C37: INSTITUT GUSTAVE-ROUSSY | D37: 2014-10-02 | E37: 1800
A38: ONXEO | B38: Etablissement de santé | C38: GUSTAVE ROUSSY | D38: 27/02/2014 | E38: 78732
A39: ONXEO | B39: Etablissement de santé | C39: GUSTAVE ROUSSY | D39: 19/03/2014 | E39: 660
A40: ONXEO | B40: Etablissement de santé | C40: GUSTAVE ROUSSY | D40: 28/03/2014 | E40: 24931
A41: SANOFI AVENTIS FRANCE | B41: Etablissement de santé | C41: INSTITUT GUSTAVE ROUSSY | D41: 2014-08-04 | E41: 115845
A42: Bayer HealthCare SAS | B42: Etablissement de santé | C42: INSTITUT GUSTAVE-ROUSSY | D42: 2014-11-04 | E42: 3000
A43: SANOFI AVENTIS FRANCE | B43: Etablissement de santé | C43: INSTITUT GUSTAVE ROUSSY | D43: 2014-12-06 | E43: 8118
A44: Genzyme | B44: Etablissement de santé | C44: INSTITUT GUSTAVE ROUSSY | D44: 15/07/2014 | E44: 6800
A45: Bayer HealthCare SAS | B45: Etablissement de santé | C45: INSTITUT GUSTAVE-ROUSSY | D45: 2014-10-09 | E45: 330
A46: Bayer HealthCare SAS | B46: Etablissement de santé | C46: INSTITUT GUSTAVE-ROUSSY | D46: 19/09/2014 | E46: 1000
A47: Bayer HealthCare SAS | B47: Etablissement de santé | C47: INSTITUT GUSTAVE-ROUSSY | D47: 19/09/2014 | E47: 1350
A48: SANOFI AVENTIS FRANCE | B48: Etablissement de santé | C48: INSTITUT GUSTAVE ROUSSY | D48: 25/09/2014 | E48: 60000
A49: SANOFI AVENTIS FRANCE | B49: Etablissement de santé | C49: INSTITUT GUSTAVE ROUSSY | D49: 2014-02-10 | E49: 9161
A50: SANOFI AVENTIS FRANCE | B50: Etablissement de santé | C50: INSTITUT GUSTAVE ROUSSY | D50: 16/10/2014 | E50: 49286
A51: Orion Corporation Orion Pharma | B51: Etablissement de santé | C51: INSTITUT GUSTAVE ROUSSY | D51: 17/10/2014 | E51: 30373
A52: ONXEO | B52: Personnes morales assurant la formation initiale ou continue des professionnels de santé | C52: GUSTAVE ROUSSY | D52: 18/11/2014 | E52: 36432
A53: SANOFI AVENTIS FRANCE | B53: Etablissement de santé | C53: INSTITUT GUSTAVE ROUSSY | D53: 2014-04-12 | E53: 19272
A54: SANOFI AVENTIS FRANCE | B54: Etablissement de santé | C54: INSTITUT GUSTAVE ROUSSY | D54: 2014-09-12 | E54: 48000
A55: LABORATOIRE GLAXOSMITHKLINE | B55: Etablissement de santé | C55: INSTITUT GUSTAVE ROUSSY | D55: 2015-06-01 | E55: 2400
A56: Genzyme | B56: Etablissement de santé | C56: INSTITUT GUSTAVE ROUSSY | D56: 15/01/2015 | E56: 1800
A57: LABORATOIRE GLAXOSMITHKLINE | B57: Etablissement de santé | C57: INSTITUT GUSTAVE ROUSSY | D57: 20/01/2015 | E57: 1440
A58: LABORATOIRE GLAXOSMITHKLINE | B58: Etablissement de santé | C58: INSTITUT GUSTAVE ROUSSY | D58: 20/01/2015 | E58: 480
A59: LABORATOIRE GLAXOSMITHKLINE | B59: Etablissement de santé | C59: INSTITUT GUSTAVE ROUSSY | D59: 20/01/2015 | E59: 600
A60: LABORATOIRE GLAXOSMITHKLINE | B60: Etablissement de santé | C60: INSTITUT GUSTAVE ROUSSY | D60: 20/01/2015 | E60: 2304
A61: LABORATOIRE GLAXOSMITHKLINE | B61: Etablissement de santé | C61: INSTITUT GUSTAVE ROUSSY | D61: 20/01/2015 | E61: 21215
A62: LABORATOIRE GLAXOSMITHKLINE | B62: Etablissement de santé | C62: INSTITUT GUSTAVE ROUSSY | D62: 27/01/2015 | E62: 660
A63: LABORATOIRE GLAXOSMITHKLINE | B63: Etablissement de santé | C63: INSTITUT GUSTAVE ROUSSY | D63: 24/02/2015 | E63: 179453
A64: LABORATOIRE GLAXOSMITHKLINE | B64: Etablissement de santé | C64: INSTITUT GUSTAVE ROUSSY | D64: 24/02/2015 | E64: 18400
A65: LABORATOIRE GLAXOSMITHKLINE | B65: Etablissement de santé | C65: INSTITUT GUSTAVE ROUSSY | D65: 24/02/2015 | E65: 88920
A66: SANOFI AVENTIS FRANCE | B66: Etablissement de santé | C66: INSTITUT GUSTAVE ROUSSY | D66: 2015-02-04 | E66: 10047
A67: Genzyme | B67: Etablissement de santé | C67: INSTITUT GUSTAVE ROUSSY | D67: 2015-09-04 | E67: 2000
A68: SANOFI AVENTIS FRANCE | B68: Etablissement de santé | C68: INSTITUT GUSTAVE ROUSSY | D68: 2015-09-04 | E68: 264
A69: SANOFI AVENTIS FRANCE | B69: Etablissement de santé | C69: INSTITUT GUSTAVE ROUSSY | D69: 2015-09-04 | E69: 60000
A70: Orion Corporation Orion Pharma | B70: Etablissement de santé | C70: INSTITUT GUSTAVE ROUSSY | D70: 2015-09-04 | E70: 440
A71: Orion Corporation Orion Pharma | B71: Etablissement de santé | C71: INSTITUT GUSTAVE ROUSSY | D71: 2015-09-04 | E71: 15239
A72: Orion Corporation Orion Pharma | B72: Etablissement de santé | C72: INSTITUT GUSTAVE ROUSSY | D72: 2015-09-04 | E72: 440
A73: Orion Corporation Orion Pharma | B73: Etablissement de santé | C73: INSTITUT GUSTAVE ROUSSY | D73: 2015-09-04 | E73: 440
A74: Orion Corporation Orion Pharma | B74: Etablissement de santé | C74: INSTITUT GUSTAVE ROUSSY | D74: 2015-09-04 | E74: 660
A75: Orion Corporation Orion Pharma | B75: Etablissement de santé | C75: INSTITUT GUSTAVE ROUSSY | D75: 14/04/2015 | E75: 3908
A76: SANOFI AVENTIS FRANCE | B76: Etablissement de santé | C76: INSTITUT GUSTAVE ROUSSY | D76: 16/04/2015 | E76: 211
A77: LABORATOIRE GLAXOSMITHKLINE | B77: Etablissement de santé | C77: INSTITUT GUSTAVE ROUSSY | D77: 2015-05-05 | E77: 5950
A78: LABORATOIRE GLAXOSMITHKLINE | B78: Etablissement de santé | C78: INSTITUT GUSTAVE ROUSSY | D78: 2015-05-05 | E78: 37140
A79: Bayer HealthCare SAS | B79: Etablissement de santé | C79: INSTITUT GUSTAVE-ROUSSY | D79: 21/05/2015 | E79: 24695
A80: LABORATOIRE GLAXOSMITHKLINE | B80: Etablissement de santé | C80: INSTITUT GUSTAVE ROUSSY | D80: 26/05/2015 | E80: 46999
A81: LABORATOIRE GLAXOSMITHKLINE | B81: Etablissement de santé | C81: INSTITUT GUSTAVE ROUSSY | D81: 26/05/2015 | E81: 4500
A82: Genzyme | B82: Etablissement de santé | C82: INSTITUT GUSTAVE ROUSSY | D82: 2015-11-06 | E82: 1560
A83: LABORATOIRE GLAXOSMITHKLINE | B83: Etablissement de santé | C83: INSTITUT GUSTAVE ROUSSY | D83: 14/07/2015 | E83: 22980
A84: LABORATOIRE GLAXOSMITHKLINE | B84: Etablissement de santé | C84: INSTITUT GUSTAVE ROUSSY | D84: 14/07/2015 | E84: 19621
A85: LABORATOIRE GLAXOSMITHKLINE | B85: Etablissement de santé | C85: INSTITUT GUSTAVE ROUSSY | D85: 15/07/2015 | E85: 63390
A86: ONXEO | B86: Personnes morales assurant la formation initiale ou continue des professionnels de santé | C86: GUSTAVE ROUSSY | D86: 16/07/2015 | E86: 7576
A87: LABORATOIRE GLAXOSMITHKLINE | B87: Etablissement de santé | C87: INSTITUT GUSTAVE ROUSSY | D87: 28/07/2015 | E87: 18060
A88: Bayer HealthCare SAS | B88: Etablissement de santé | C88: INSTITUT GUSTAVE-ROUSSY | D88: 18/09/2015 | E88: 2219
A89: Bayer HealthCare SAS | B89: Etablissement de santé | C89: INSTITUT GUSTAVE-ROUSSY | D89: 21/09/2015 | E89: 1000
A90: Bayer HealthCare SAS | B90: Etablissement de santé | C90: INSTITUT GUSTAVE-ROUSSY | D90: 2015-07-10 | E90: 2310
A91: Bayer HealthCare SAS | B91: Etablissement de santé | C91: INSTITUT GUSTAVE-ROUSSY | D91: 2015-09-10 | E91: 2640
A92: Bayer HealthCare SAS | B92: Etablissement de santé | C92: INSTITUT GUSTAVE-ROUSSY | D92: 2015-09-10 | E92: 10120
A93: Bayer HealthCare SAS | B93: Etablissement de santé | C93: INSTITUT GUSTAVE-ROUSSY | D93: 2015-09-10 | E93: 13585
A94: Bayer HealthCare SAS | B94: Etablissement de santé | C94: INSTITUT GUSTAVE-ROUSSY | D94: 2015-09-10 | E94: 1650
A95: Bayer HealthCare SAS | B95: Etablissement de santé | C95: INSTITUT GUSTAVE-ROUSSY | D95: 2015-09-10 | E95: 1403
A96: PIERRE FABRE MEDICAMENT | B96: Etablissement de santé | C96: INSTITUT GUSTAVE ROUSSY | D96: 14/10/2015 | E96: 216144
A97: ROCHE SAS | B97: Etablissement de santé | C97: GUSTAVE ROUSSY | D97: 2015-03-11 | E97: 1200
A98: LABORATOIRE GLAXOSMITHKLINE | B98: Etablissement de santé | C98: INSTITUT GUSTAVE ROUSSY | D98: 2015-10-11 | E98: 19308
A99: ROCHE SAS | B99: Etablissement de santé | C99: GUSTAVE ROUSSY | D99: 17/11/2015 | E99: 7000
A100: LABORATOIRE GLAXOSMITHKLINE | B100: Etablissement de santé | C100: INSTITUT GUSTAVE ROUSSY | D100: 17/11/2015 | E100: 10560
A101: ROCHE SAS | B101: Etablissement de santé | C101: GUSTAVE ROUSSY | D101: 24/11/2015 | E101: 321
A102: SANOFI AVENTIS FRANCE | B102: Etablissement de santé | C102: INSTITUT GUSTAVE ROUSSY | D102: 17/12/2015 | E102: 2244
A103: Genzyme | B103: Etablissement de santé | C103: INSTITUT GUSTAVE ROUSSY | D103: 24/12/2015 | E103: 1800
A104: SANOFI AVENTIS FRANCE | B104: Etablissement de santé | C104: INSTITUT GUSTAVE ROUSSY | D104: 24/12/2015 | E104: 14159
A105: LABORATOIRE GLAXOSMITHKLINE | B105: Etablissement de santé | C105: INSTITUT GUSTAVE ROUSSY | D105: 2016-06-01 | E105: 133380
A106: LABORATOIRE GLAXOSMITHKLINE | B106: Etablissement de santé | C106: INSTITUT GUSTAVE ROUSSY | D106: 2016-06-01 | E106: 130110
A107: ROCHE SAS | B107: Etablissement de santé | C107: GUSTAVE ROUSSY | D107: 2016-12-01 | E107: 968
A108: LABORATOIRE GLAXOSMITHKLINE | B108: Etablissement de santé | C108: INSTITUT GUSTAVE ROUSSY | D108: 19/01/2016 | E108: 8736
A109: LABORATOIRE GLAXOSMITHKLINE | B109: Etablissement de santé | C109: INSTITUT GUSTAVE ROUSSY | D109: 19/01/2016 | E109: 24720
A110: LABORATOIRE GLAXOSMITHKLINE | B110: Etablissement de santé | C110: INSTITUT GUSTAVE ROUSSY | D110: 19/01/2016 | E110: 6480
A111: LABORATOIRE GLAXOSMITHKLINE | B111: Etablissement de santé | C111: INSTITUT GUSTAVE ROUSSY | D111: 19/01/2016 | E111: 1800
A112: LABORATOIRE GLAXOSMITHKLINE | B112: Etablissement de santé | C112: INSTITUT GUSTAVE ROUSSY | D112: 19/01/2016 | E112: 3300
A113: LABORATOIRE GLAXOSMITHKLINE | B113: Etablissement de santé | C113: INSTITUT GUSTAVE ROUSSY | D113: 19/01/2016 | E113: 600
A114: LABORATOIRE GLAXOSMITHKLINE | B114: Etablissement de santé | C114: INSTITUT GUSTAVE ROUSSY | D114: 19/01/2016 | E114: 840
A115: LABORATOIRE GLAXOSMITHKLINE | B115: Etablissement de santé | C115: INSTITUT GUSTAVE ROUSSY | D115: 27/01/2016 | E115: 19080
A116: LABORATOIRE GLAXOSMITHKLINE | B116: Etablissement de santé | C116: INSTITUT GUSTAVE ROUSSY | D116: 27/01/2016 | E116: 254160
A117: LABORATOIRE GLAXOSMITHKLINE | B117: Etablissement de santé | C117: INSTITUT GUSTAVE ROUSSY | D117: 27/01/2016 | E117: 600
A118: SANOFI-AVENTIS RECHERCHE & DEVELOPPEMENT | B118: Etablissement de santé | C118: INSTITUT GUSTAVE ROUSSY | D118: 2016-02-02 | E118: 112114
A119: LABORATOIRE GLAXOSMITHKLINE | B119: Etablissement de santé | C119: INSTITUT GUSTAVE ROUSSY | D119: 2016-02-02 | E119: 2520
A120: SANOFI-AVENTIS RECHERCHE & DEVELOPPEMENT | B120: Etablissement de santé | C120: INSTITUT GUSTAVE ROUSSY | D120: 2016-02-02 | E120: 213000
A121: LABORATOIRE GLAXOSMITHKLINE | B121: Etablissement de santé | C121: INSTITUT GUSTAVE ROUSSY | D121: 2016-02-02 | E121: 480
A122: SANOFI-AVENTIS RECHERCHE & DEVELOPPEMENT | B122: Etablissement de santé | C122: INSTITUT GUSTAVE ROUSSY | D122: 2016-02-02 | E122: 112114
A123: ROCHE SAS | B123: Etablissement de santé | C123: GUSTAVE ROUSSY | D123: 2016-09-02 | E123: 30000
A124: LABORATOIRE GLAXOSMITHKLINE | B124: Etablissement de santé | C124: INSTITUT GUSTAVE ROUSSY | D124: 2016-09-02 | E124: 6120
A125: LABORATOIRE GLAXOSMITHKLINE | B125: Etablissement de santé | C125: INSTITUT GUSTAVE ROUSSY | D125: 2016-09-02 | E125: 240
A126: LABORATOIRE GLAXOSMITHKLINE | B126: Etablissement de santé | C126: INSTITUT GUSTAVE ROUSSY | D126: 2016-09-02 | E126: 2280
A127: LABORATOIRE GLAXOSMITHKLINE | B127: Etablissement de santé | C127: INSTITUT GUSTAVE ROUSSY | D127: 2016-09-02 | E127: 3780
A128: LABORATOIRE GLAXOSMITHKLINE | B128: Etablissement de santé | C128: INSTITUT GUSTAVE ROUSSY | D128: 2016-09-02 | E128: 8400
A129: LABORATOIRE GLAXOSMITHKLINE | B129: Etablissement de santé | C129: INSTITUT GUSTAVE ROUSSY | D129: 2016-09-02 | E129: 33434
A130: Orion Corporation Orion Pharma | B130: Etablissement de santé | C130: INSTITUT GUSTAVE ROUSSY | D130: 15/02/2016 | E130: 1100
A131: Orion Corporation Orion Pharma | B131: Etablissement de santé | C131: INSTITUT GUSTAVE ROUSSY | D131: 15/02/2016 | E131: 8511
A132: Orion Corporation Orion Pharma | B132: Etablissement de santé | C132: INSTITUT GUSTAVE ROUSSY | D132: 15/02/2016 | E132: 9693
A133: Orion Corporation Orion Pharma | B133: Etablissement de santé | C133: INSTITUT GUSTAVE ROUSSY | D133: 15/02/2016 | E133: 880
A134: ROCHE SAS | B134: Etablissement de santé | C134: GUSTAVE ROUSSY | D134: 16/02/2016 | E134: 552
A135: LABORATOIRE GLAXOSMITHKLINE | B135: Etablissement de santé | C135: INSTITUT GUSTAVE ROUSSY | D135: 16/02/2016 | E135: 840
A136: LABORATOIRE GLAXOSMITHKLINE | B136: Etablissement de santé | C136: INSTITUT GUSTAVE ROUSSY | D136: 16/02/2016 | E136: 3840
A137: LABORATOIRE GLAXOSMITHKLINE | B137: Etablissement de santé | C137: INSTITUT GUSTAVE ROUSSY | D137: 16/02/2016 | E137: 3555
A138: Orion Corporation Orion Pharma | B138: Etablissement de santé | C138: INSTITUT GUSTAVE ROUSSY | D138: 16/02/2016 | E138: 14204
A139: ROCHE SAS | B139: Etablissement de santé | C139: GUSTAVE ROUSSY | D139: 2016-01-03 | E139: 31
A140: LABORATOIRE GLAXOSMITHKLINE | B140: Etablissement de santé | C140: INSTITUT GUSTAVE ROUSSY | D140: 2016-02-03 | E140: 5088
A141: SANOFI AVENTIS FRANCE | B141: Etablissement de santé | C141: INSTITUT GUSTAVE ROUSSY | D141: 2016-03-03 | E141: 60000
A142: PIERRE FABRE MEDICAMENT | B142: Etablissement de santé | C142: INSTITUT GUSTAVE ROUSSY | D142: 2016-05-03 | E142: 12000
A143: SANOFI-AVENTIS RECHERCHE & DEVELOPPEMENT | B143: Etablissement de santé | C143: INSTITUT GUSTAVE ROUSSY | D143: 2016-08-03 | E143: 472896
A144: LABORATOIRE GLAXOSMITHKLINE | B144: Etablissement de santé | C144: INSTITUT GUSTAVE ROUSSY | D144: 2016-08-03 | E144: 11896
A145: LABORATOIRE GLAXOSMITHKLINE | B145: Etablissement de santé | C145: INSTITUT GUSTAVE ROUSSY | D145: 2016-08-03 | E145: 50707
A146: LABORATOIRE GLAXOSMITHKLINE | B146: Etablissement de santé | C146: INSTITUT GUSTAVE ROUSSY | D146: 2016-08-03 | E146: 9662
A147: LABORATOIRE GLAXOSMITHKLINE | B147: Etablissement de santé | C147: INSTITUT GUSTAVE ROUSSY | D147: 15/03/2016 | E147: 106952
A148: Bayer HealthCare SAS | B148: Etablissement de santé | C148: INSTITUT GUSTAVE-ROUSSY | D148: 18/03/2016 | E148: 6050
A149: Bayer HealthCare SAS | B149: Etablissement de santé | C149: INSTITUT GUSTAVE-ROUSSY | D149: 18/03/2016 | E149: 4455
A150: LABORATOIRE GLAXOSMITHKLINE | B150: Etablissement de santé | C150: INSTITUT GUSTAVE ROUSSY | D150: 22/03/2016 | E150: 120
A151: LABORATOIRE GLAXOSMITHKLINE | B151: Etablissement de santé | C151: INSTITUT GUSTAVE ROUSSY | D151: 22/03/2016 | E151: 7803
A152: ONXEO | B152: Personnes morales assurant la formation initiale ou continue des professionnels de santé | C152: GUSTAVE ROUSSY | D152: 31/03/2016 | E152: 2700
A153: ROCHE SAS | B153: Etablissement de santé | C153: GUSTAVE ROUSSY | D153: 2016-02-04 | E153: 750
A154: LABORATOIRE GLAXOSMITHKLINE | B154: Etablissement de santé | C154: INSTITUT GUSTAVE ROUSSY | D154: 2016-05-04 | E154: 3600
A155: SANOFI-AVENTIS RECHERCHE & DEVELOPPEMENT | B155: Etablissement de santé | C155: INSTITUT GUSTAVE ROUSSY | D155: 2016-12-04 | E155: 6600
A156: NOVARTIS PHARMA SAS | B156: Etablissement de santé | C156: GUSTAVE ROUSSY | D156: 14/04/2016 | E156: 34419
A157: LABORATOIRE GLAXOSMITHKLINE | B157: Etablissement de santé | C157: INSTITUT GUSTAVE ROUSSY | D157: 19/04/2016 | E157: 2772
A158: LABORATOIRE GLAXOSMITHKLINE | B158: Etablissement de santé | C158: INSTITUT GUSTAVE ROUSSY | D158: 19/04/2016 | E158: 660
A159: LABORATOIRE GLAXOSMITHKLINE | B159: Etablissement de santé | C159: INSTITUT GUSTAVE ROUSSY | D159: 19/04/2016 | E159: 25410
A160: LABORATOIRE GLAXOSMITHKLINE | B160: Etablissement de santé | C160: INSTITUT GUSTAVE ROUSSY | D160: 19/04/2016 | E160: 1848
A161: LABORATOIRE GLAXOSMITHKLINE | B161: Etablissement de santé | C161: INSTITUT GUSTAVE ROUSSY | D161: 19/04/2016 | E161: 1901
A162: LABORATOIRE GLAXOSMITHKLINE | B162: Etablissement de santé | C162: INSTITUT GUSTAVE ROUSSY | D162: 19/04/2016 | E162: 660
A163: LABORATOIRE GLAXOSMITHKLINE | B163: Etablissement de santé | C163: INSTITUT GUSTAVE ROUSSY | D163: 19/04/2016 | E163: 2112
A164: AbbVie | B164: Etablissement de santé | C164: INSTITUT GUSTAVE ROUSSY | D164: 25/04/2016 | E164: 27524
A165: JANSSEN-CILAG | B165: Académies, Fondation, sociétés savantes, organismes de conseils | C165: NILE SARL | D165: 2016-02-05 | E165: 7650
A166: LABORATOIRE GLAXOSMITHKLINE | B166: Etablissement de santé | C166: INSTITUT GUSTAVE ROUSSY | D166: 2016-04-05 | E166: 1584
A167: LABORATOIRE GLAXOSMITHKLINE | B167: Etablissement de santé | C167: INSTITUT GUSTAVE ROUSSY | D167: 2016-04-05 | E167: 660
A168: LABORATOIRE GLAXOSMITHKLINE | B168: Etablissement de santé | C168: INSTITUT GUSTAVE ROUSSY | D168: 2016-04-05 | E168: 35244
A169: LABORATOIRE GLAXOSMITHKLINE | B169: Etablissement de santé | C169: INSTITUT GUSTAVE ROUSSY | D169: 2016-04-05 | E169: 17774
A170: LABORATOIRE GLAXOSMITHKLINE | B170: Etablissement de santé | C170: INSTITUT GUSTAVE ROUSSY | D170: 2016-04-05 | E170: 845
A171: LABORATOIRE GLAXOSMITHKLINE | B171: Etablissement de santé | C171: INSTITUT GUSTAVE ROUSSY | D171: 2016-04-05 | E171: 18974
A172: LABORATOIRE GLAXOSMITHKLINE | B172: Etablissement de santé | C172: INSTITUT GUSTAVE ROUSSY | D172: 2016-04-05 | E172: 3960
A173: LABORATOIRE GLAXOSMITHKLINE | B173: Etablissement de santé | C173: INSTITUT GUSTAVE ROUSSY | D173: 2016-04-05 | E173: 1980
A174: LABORATOIRE GLAXOSMITHKLINE | B174: Etablissement de santé | C174: INSTITUT GUSTAVE ROUSSY | D174: 2016-04-05 | E174: 924
A175: SANOFI-AVENTIS RECHERCHE & DEVELOPPEMENT | B175: Etablissement de santé | C175: INSTITUT GUSTAVE ROUSSY | D175: 2016-10-05 | E175: 1711
A176: LABORATOIRE GLAXOSMITHKLINE | B176: Etablissement de santé | C176: INSTITUT GUSTAVE ROUSSY | D176: 2016-10-05 | E176: 6384
A177: Bayer HealthCare SAS | B177: Etablissement de santé | C177: INSTITUT GUSTAVE-ROUSSY | D177: 2016-11-05 | E177: 26714
A178: LABORATOIRE GLAXOSMITHKLINE | B178: Etablissement de santé | C178: INSTITUT GUSTAVE ROUSSY | D178: 17/05/2016 | E178: 30893
A179: Genzyme | B179: Etablissement de santé | C179: INSTITUT GUSTAVE ROUSSY | D179: 19/05/2016 | E179: 2400
A180: ROCHE SAS | B180: Etablissement de santé | C180: GUSTAVE ROUSSY | D180: 23/05/2016 | E180: 9600
A181: SANOFI-AVENTIS RECHERCHE & DEVELOPPEMENT | B181: Etablissement de santé | C181: INSTITUT GUSTAVE ROUSSY | D181: 14/06/2016 | E181: 2492
A182: AbbVie | B182: Etablissement de santé | C182: INSTITUT GUSTAVE ROUSSY | D182: 20/06/2016 | E182: 24282
A183: Bayer HealthCare SAS | B183: Etablissement de santé | C183: INSTITUT GUSTAVE-ROUSSY | D183: 23/06/2016 | E183: 990
A184: Bayer HealthCare SAS | B184: Etablissement de santé | C184: INSTITUT GUSTAVE-ROUSSY | D184: 24/06/2016 | E184: 4534
A185: LABORATOIRE GLAXOSMITHKLINE | B185: Etablissement de santé | C185: INSTITUT GUSTAVE ROUSSY | D185: 2016-12-07 | E185: 60000
A186: PFIZER SAS | B186: Etablissement de santé | C186: INSTITUT GUSTAVE ROUSSY | D186: 26/07/2016 | E186: 3600
A187: JANSSEN-CILAG | B187: Académies, Fondation, sociétés savantes, organismes de conseils | C187: NILE SARL | D187: 27/08/2016 | E187: 7650
A188: NOVARTIS PHARMA SAS | B188: Etablissement de santé | C188: GUSTAVE ROUSSY | D188: 31/08/2016 | E188: 7200
A189: LABORATOIRE GLAXOSMITHKLINE | B189: Etablissement de santé | C189: INSTITUT GUSTAVE ROUSSY | D189: 2016-02-09 | E189: 63574
A190: LABORATOIRE GLAXOSMITHKLINE | B190: Etablissement de santé | C190: INSTITUT GUSTAVE ROUSSY | D190: 2016-02-09 | E190: 73430
A191: PFIZER SAS | B191: Etablissement de santé | C191: INSTITUT GUSTAVE ROUSSY | D191: 2016-06-09 | E191: 1000
A192: LABORATOIRE GLAXOSMITHKLINE | B192: Etablissement de santé | C192: INSTITUT GUSTAVE ROUSSY | D192: 2016-07-09 | E192: 9240
A193: LABORATOIRE GLAXOSMITHKLINE | B193: Etablissement de santé | C193: INSTITUT GUSTAVE ROUSSY | D193: 2016-09-09 | E193: 27720
A194: LABORATOIRE GLAXOSMITHKLINE | B194: Etablissement de santé | C194: INSTITUT GUSTAVE ROUSSY | D194: 2016-09-09 | E194: 7814
A195: Celgene Corporation | B195: Etablissement de santé | C195: INSTITUT GUSTAVE ROUSSY | D195: 2016-09-09 | E195: 71225
A196: Celgene Corporation | B196: Etablissement de santé | C196: INSTITUT GUSTAVE ROUSSY | D196: 2016-09-09 | E196: 77000
A197: LABORATOIRE GLAXOSMITHKLINE | B197: Etablissement de santé | C197: INSTITUT GUSTAVE ROUSSY | D197: 13/09/2016 | E197: 20400
A198: LABORATOIRE GLAXOSMITHKLINE | B198: Etablissement de santé | C198: INSTITUT GUSTAVE ROUSSY | D198: 13/09/2016 | E198: 43716
A199: AbbVie | B199: Etablissement de santé | C199: INSTITUT CURIE | D199: 19/09/2016 | E199: 18838
A200: SANOFI-AVENTIS RECHERCHE & DEVELOPPEMENT | B200: Etablissement de santé | C200: INSTITUT GUSTAVE ROUSSY | D200: 20/09/2016 | E200: 18000
... 250 more rows

Sheet Déplacements
A2: Début | B2: Fin | C2: Signature | D2: Congrès | E2: Lieux | F2: Firme

Sheet Tableaux de synthèse
C3: Synthèse | G3: Avantages perçus | O3: Conventions signées | Z3: Montants des avantages versés par les entreprises - Montants des avantages versés par les entreprises - Montants des avantages versés par les entreprises - Montants des avantages versés | BC3: Nombres d'avantages versés par les entreprises - Nombres d'avantages versés par les entreprises - Nombres d'avantages versés par les entreprises - Nombres d'avantages versés par les entreprises - Nombres d'avantages versés par les entreprises - | CF3: Nombres de conventions signées avec les entreprises - Nombres de conventions signées avec les entreprises - Nombres de conventions signées avec les entreprises - Nombres de conventions signées avec les entreprises - Nombres de conventions signées avec les entreprises -
B4: Bénéficiaire | C4: Total avantages perçus (€) | D4: Nombre d'avantages perçus | E4: Nombre de conventions signées | F4: Rémunérations + montants de conventions | G4: Transport | H4: Hébergement | I4: Repas | J4: Hospitalité | K4: Inscription | L4: Conseil | M4: Congrès | N4: Autre | O4: Hospitalité | P4: Orateur | Q4: Réunion professionnelle | R4: Expert | S4: Conseil | T4: Recherche Clinique | U4: Etude de marché | V4: Formateur | W4: Rédacteur | X4: Réunion de « Board » | Y4: Autre | Z4: PSI CRO FRANCE | AA4: CHUGAI | AB4: Novartis | AC4: MSD France | AD4: ASTELLAS PHARMA | AE4: Pfizer | AF4: Takeda France | AG4: Roche | AH4: CELGENE | AI4: INSTITUT MERIEUX | AJ4: AstraZeneca | AK4: Genzyme | AL4: BOSTON SCIENTIFIC SAS | AM4: MERCK SERONO | AN4: SINCLAIR PHARMA | AO4: Lilly | AP4: INC RESEARCH, LLC | AQ4: Becton Dickinson France SAS | AR4: NUXE | AS4: AbbVie | AT4: LEO Pharma | AU4: BIOM'UP | AV4: GAMIDA | AW4: PHILIPS FRANCE | AX4: Advanced Accelerator Applications | AY4: Bayer HealthCare SAS | AZ4: SANDOZ | BA4: GSK | BB4: COVIDIEN FRANCE S.A.S. | BC4: Roche | BD4: PSI CRO FRANCE | BE4: CHUGAI | BF4: INC RESEARCH, LLC | BG4: MSD France | BH4: Pfizer | BI4: INSTITUT MERIEUX | BJ4: ASTELLAS PHARMA | BK4: Novartis | BL4: Takeda France | BM4: Genzyme | BN4: SINCLAIR PHARMA | BO4: MERCK SERONO | BP4: SANDOZ | BQ4: COVIDIEN FRANCE S.A.S. | BR4: CELGENE | BS4: BIOM'UP | BT4: GAMIDA | BU4: PHILIPS FRANCE | BV4: Becton Dickinson France SAS | BW4: LEO Pharma | BX4: BOSTON SCIENTIFIC SAS | BY4: Advanced Accelerator Applications | BZ4: Lilly | CA4: AbbVie | CB4: Bayer HealthCare SAS | CC4: NUXE | CD4: AstraZeneca | CE4: GSK | CF4: Roche | CG4: AstraZeneca | CH4: Bristol -Myers Squibb | CI4: MSD France | CJ4: Novartis | CK4: Bayer HealthCare SAS | CL4: Pfizer | CM4: SANOFI-AVENTIS RECHERCHE & DEVELOPPEMENT | CN4: Lilly | CO4: QUINTILES BENEFIT FRANCE SNC | CP4: BOEHRINGER INGELHEIM FRANCE | CQ4: INC RESEARCH, LLC | CR4: Inventivhealthclinical | CS4: GE Medical Systems SCS | CT4: AbbVie | CU4: Genzyme | CV4: PPD FRANCE SAS | CW4: Sanofi Aventis France | CX4: MERCK SERONO | CY4: Amgen | CZ4: Pierre Fabre Médicament | DA4: ICON CLINICAL RESEARCH SARL | DB4: Takeda France | DC4: EISAI SAS | DD4: Janssen-Cilag | DE4: GSK | DF4: IPSEN PHARMA | DG4: Orion Corporation Orion Pharma | DH4: NODEA MEDICAL | DI4: CHUGAI | DJ4: Accuray Europe | DK4: ONXEO | DL4: PRA | DM4: SANOFI-AVENTIS GROUPE | DN4: GENETHON | DO4: B.BRAUN MEDICAL SAS | DP4: PAREXEL International | DQ4: Medline International France SAS | DR4: INNATE PHARMA | DS4: Advanced Accelerator Applications | DT4: LEO Pharma | DU4: PSI CRO FRANCE | DV4: CELGENE | DW4: Transgene SA | DX4: FRESENIUS KABI FRANCE | DY4: COVIDIEN FRANCE S.A.S. | DZ4: MEDTRONIC France S.A.S | EA4: LVL MEDICAL PARIS ET NORD | EB4: NANOBIOTIX S.A. | EC4: PSI CRO AG | ED4: INSTITUT MERIEUX | EE4: GENTICEL | EF4: OLYMPUS France SAS | EG4: JAZZ PHARMACEUTICALS FRANCE | EH4: MUNDIPHARMA | EI4: VIFOR FRANCE SA | EJ4: DIAXONHIT | EK4: SANDOZ | EL4: ProStrakan Pharma | EM4: BRACCO IMAGING FRANCE | EN4: SIEMENS SAS | EO4: Institut Roche | EP4: PHILIPS FRANCE | EQ4: BARD FRANCE SAS | ER4: KEOCYT | ES4: SynteractHCR France S.A.S. | ET4: OSE Immunotherapeutics | EU4: Becton Dickinson France SAS | EV4: ETHICON | EW4: CIS BIO INTERNATIONAL | EX4: PHARMA MAR S.A.R.L. | EY4: CELGENE SAS | EZ4: ROCHE DIAGNOSTICS FRANCE | FA4: EUSA Pharma (France) SAS
B5: IGR, Villejuif | C5: ='Avantages perçus'!F115 -> 1889985 | D5: =COUNTIFS('Avantages perçus'!$A$2:$A$30041,B5,'Avantages perçus'!$F$2:$F$30041,">0") -> 112 | E5: =COUNTIFS('Conventions signées'!$A$2:$A$15010,B5,'Conventions signées'!$A$2:$A$15010,"*") -> 679 | F5: ='Conventions signées'!G681+Rémunérations!E416 -> 20423545 | G5: 4080 | H5: 914 | I5: 404 | J5: 0 | K5: 0 | L5: 0 | M5: 11160 | N5: 1873427 | O5: 1 | P5: 16 | Q5: 59 | R5: 16 | S5: 103 | T5: 350 | U5: 2 | V5: 15 | W5: 0 | X5: 0 | Y5: 117 | Z5: 105556 | AA5: 64600 | AB5: 50000 | AC5: 48853 | AD5: 45000 | AE5: 33430 | AF5: 27700 | AG5: 21855 | AH5: 15000 | AI5: 6400 | AJ5: 5000 | AK5: 4500 | AL5: 4500 | AM5: 3520 | AN5: 2960 | AO5: 1200 | AP5: 1058 | AQ5: 1000 | AR5: 1000 | AS5: 800 | AT5: 600 | AU5: 500 | AV5: 500 | AW5: 500 | AX5: 400 | AY5: 186 | AZ5: 60 | BA5: 29 | BB5: 24 | BC5: 20 | BD5: 19 | BE5: 14 | BF5: 10 | BG5: 9 | BH5: 5 | BI5: 5 | BJ5: 3 | BK5: 3 | BL5: 2 | BM5: 2 | BN5: 2 | BO5: 2 | BP5: 1 | BQ5: 1 | BR5: 1 | BS5: 1 | BT5: 1 | BU5: 1 | BV5: 1 | BW5: 1 | BX5: 1 | BY5: 1 | BZ5: 1 | CA5: 1 | CB5: 1 | CC5: 1 | CD5: 1 | CE5: 1 | CF5: 64 | CG5: 61 | CH5: 56 | CI5: 47 | CJ5: 46 | CK5: 34 | CL5: 27 | CM5: 23 | CN5: 23 | CO5: 20 | CP5: 16 | CQ5: 15 | CR5: 14 | CS5: 13 | CT5: 13 | CU5: 12 | CV5: 12 | CW5: 11 | CX5: 11 | CY5: 11 | CZ5: 10 | DA5: 10 | DB5: 9 | DC5: 9 | DD5: 8 | DE5: 7 | DF5: 6 | DG5: 4 | DH5: 4 | DI5: 4 | DJ5: 4 | DK5: 4 | DL5: 4 | DM5: 3 | DN5: 3 | DO5: 3 | DP5: 3 | DQ5: 3 | DR5: 2 | DS5: 2 | DT5: 2 | DU5: 2 | DV5: 2 | DW5: 2 | DX5: 2 | DY5: 2 | DZ5: 2 | EA5: 2 | EB5: 2 | EC5: 2 | ED5: 2 | EE5: 2 | EF5: 2 | EG5: 2 | EH5: 1 | EI5: 1 | EJ5: 1 | EK5: 1 | EL5: 1 | EM5: 1 | EN5: 1 | EO5: 1 | EP5: 1 | EQ5: 1 | ER5: 1 | ES5: 1 | ET5: 1 | EU5: 1 | EV5: 1 | EW5: 1 | EX5: 1 | EY5: 1 | EZ5: 1 | FA5: 1
B6: TOTAUX | C6: 1889985 | D6: 112 | E6: 679 | F6: =F5 -> 20423545 | G6: 4080 | H6: 914 | I6: 404 | J6: 0 | K6: 0 | L6: 0 | M6: 11160 | N6: 1873427 | O6: 1 | P6: 16 | Q6: 59 | R6: 16 | S6: 103 | T6: 350 | U6: 2 | V6: 15 | W6: 0 | X6: 0 | Y6: 117 | Z6: 105556 | AA6: 64600 | AB6: 50000 | AC6: 48853 | AD6: 45000 | AE6: 33430 | AF6: 27700 | AG6: 21855 | AH6: 15000 | AI6: 6400 | AJ6: 5000 | AK6: 4500 | AL6: 4500 | AM6: 3520 | AN6: 2960 | AO6: 1200 | AP6: 1058 | AQ6: 1000 | AR6: 1000 | AS6: 800 | AT6: 600 | AU6: 500 | AV6: 500 | AW6: 500 | AX6: 400 | AY6: 186 | AZ6: 60 | BA6: 29 | BB6: 24 | BC6: 20 | BD6: 19 | BE6: 14 | BF6: 10 | BG6: 9 | BH6: 5 | BI6: 5 | BJ6: 3 | BK6: 3 | BL6: 2 | BM6: 2 | BN6: 2 | BO6: 2 | BP6: 1 | BQ6: 1 | BR6: 1 | BS6: 1 | BT6: 1 | BU6: 1 | BV6: 1 | BW6: 1 | BX6: 1 | BY6: 1 | BZ6: 1 | CA6: 1 | CB6: 1 | CC6: 1 | CD6: 1 | CE6: 1 | CF6: 64 | CG6: 61 | CH6: 56 | CI6: 47 | CJ6: 46 | CK6: 34 | CL6: 27 | CM6: 23 | CN6: 23 | CO6: 20 | CP6: 16 | CQ6: 15 | CR6: 14 | CS6: 13 | CT6: 13 | CU6: 12 | CV6: 12 | CW6: 11 | CX6: 11 | CY6: 11 | CZ6: 10 | DA6: 10 | DB6: 9 | DC6: 9 | DD6: 8 | DE6: 7 | DF6: 6 | DG6: 4 | DH6: 4 | DI6: 4 | DJ6: 4 | DK6: 4 | DL6: 4 | DM6: 3 | DN6: 3 | DO6: 3 | DP6: 3 | DQ6: 3 | DR6: 2 | DS6: 2 | DT6: 2 | DU6: 2 | DV6: 2 | DW6: 2 | DX6: 2 | DY6: 2 | DZ6: 2 | EA6: 2 | EB6: 2 | EC6: 2 | ED6: 2 | EE6: 2 | EF6: 2 | EG6: 2 | EH6: 1 | EI6: 1 | EJ6: 1 | EK6: 1 | EL6: 1 | EM6: 1 | EN6: 1 | EO6: 1 | EP6: 1 | EQ6: 1 | ER6: 1 | ES6: 1 | ET6: 1 | EU6: 1 | EV6: 1 | EW6: 1 | EX6: 1 | EY6: 1 | EZ6: 1 | FA6: 1
B9: Période d'étude | C9: 1er semestre 2013 - 2ème semestre 2017, soient 5 années
B10: Début de l'analyse | C10: 11/07/2018 10:54:37
B11: Fin de l'analyse | C11: 11/07/2018 10:55:15

Sheet Top 25 firmes
A1: Rang | B1: Firmes | C1: Avantages | D1: Conventions | E1: Rémunérations | F1: Total | G1: % Avantages | H1: % Conventions | I1: % Rémunérations
A2: 1 | B2: BRISTOL-MYERS SQUIBB | C2: ='Avantages perçus'!F158 -> 0 | D2: ='Conventions signées'!G686 -> 3478143 | E2: =Rémunérations!E450 -> 121400 | F2: =SUM(C2:E2) -> 3599543 | G2: =C2/F2 -> 0 | H2: =D2/F2 -> 0.9662734964 | I2: =E2/F2 -> 0.03372650361
A3: 2 | B3: Lilly France SAS | C3: ='Avantages perçus'!F146 -> 1200 | D3: ='Conventions signées'!G688 -> 2470567 | E3: =Rémunérations!E426 -> 791502 | F3: =SUM(C3:E3) -> 3263269 | G3: =C3/F3 -> 0.0003677294149 | H3: =D3/F3 -> 0.7570834645 | I3: =E3/F3 -> 0.2425488061
A4: 3 | B4: SANOFI-AVENTIS | C4: ='Avantages perçus'!F173 -> 0 | D4: ='Conventions signées'!G731 -> 0 | E4: =Rémunérations!E422 -> 3082643 | F4: =SUM(C4:E4) -> 3082643 | G4: 0 | H4: 0 | I4: 1
A5: 4 | B5: Bayer HealthCare SAS | C5: ='Avantages perçus'!F150 -> 186 | D5: ='Conventions signées'!G690 -> 2175951 | E5: =Rémunérations!E448 -> 123175 | F5: =SUM(C5:E5) -> 2299312 | G5: 8.0893763e-05 | H5: 0.9463487339 | I5: 0.05357037235
A6: 5 | B6: LABORATOIRE GLAXOSMITHKLINE | C6: ='Avantages perçus'!F152 -> 29 | D6: ='Conventions signées'!G716 -> 0 | E6: =Rémunérations!E424 -> 2765128 | F6: 2765157 | G6: 1.048765043e-05 | H6: 0 | I6: 0.9999895123
A7: 6 | B7: PFIZER SAS | C7: ='Avantages perçus'!F118 -> 1030738 | D7: ='Conventions signées'!G722 -> 0 | E7: =Rémunérations!E458 -> 13380 | F7: =SUM(C7:E7) -> 1044118 | G7: 0.9871853564 | H7: 0 | I7: 0.01281464356
A8: 7 | B8: Celgene Corporation | C8: ='Avantages perçus'!F160 -> 0 | D8: ='Conventions signées'!G698 -> 262728 | E8: =Rémunérations!E428 -> 552125 | F8: 814853 | G8: 0 | H8: 0.3224237991 | I8: 0.6775762009
A9: 8 | B9: ASTRAZENECA | C9: ='Avantages perçus'!F128 -> 60000 | D9: ='Conventions signées'!G700 -> 134117 | E9: =Rémunérations!E430 -> 465075 | F9: 659192 | G9: 0.09102052209 | H9: 0.203456656 | I9: 0.7055228219
A10: 9 | B10: ROCHE | C10: ='Avantages perçus'!F140 -> 21855 | D10: ='Conventions signées'!G696 -> 289572 | E10: =Rémunérations!E438 -> 312014 | F10: =SUM(C10:E10) -> 623441 | G10: 0.0350554423 | H10: 0.4644737834 | I10: 0.5004707743
A11: 10 | B11: AbbVie | C11: ='Avantages perçus'!F148 -> 800 | D11: ='Conventions signées'!G710 -> 9200 | E11: =Rémunérations!E434 -> 435030 | F11: =SUM(C11:E11) -> 445030 | G11: 0.00179763162 | H11: 0.02067276363 | I11: 0.9775296047
A12: 11 | B12: Orion Corporation Orion Pharma | C12: ='Avantages perçus'!F154 -> 0 | D12: ='Conventions signées'!G692 -> 295864 | E12: =Rémunérations!E446 -> 144765 | F12: =SUM(C12:E12) -> 440629 | G12: 0 | H12: 0.6714583017 | I12: 0.3285416983
A13: 12 | B13: AMGEN SAS | C13: ='Avantages perçus'!F164 -> 0 | D13: ='Conventions signées'!G714 -> 500 | E13: =Rémunérations!E432 -> 440095 | F13: 440595 | G13: 0 | H13: 0.001134829038 | I13: 0.998865171
A14: 13 | B14: PSI CRO France | C14: ='Avantages perçus'!F120 -> 265258 | D14: ='Conventions signées'!G737 -> 0 | E14: =Rémunérations!E452 -> 120368 | F14: =SUM(C14:E14) -> 385626 | G14: 0.6878633702 | H14: 0 | I14: 0.3121366298
A15: 14 | B15: NOVARTIS | C15: ='Avantages perçus'!F132 -> 50000 | D15: ='Conventions signées'!G704 -> 98630 | E15: =Rémunérations!E444 -> 164180 | F15: =SUM(C15:E15) -> 312810 | G15: 0.1598414373 | H15: 0.3153032192 | I15: 0.5248553435
A16: 15 | B16: PIERRE FABRE MEDICAMENT | C16: ='Avantages perçus'!F166 -> 0 | D16: ='Conventions signées'!G718 -> 0 | E16: =Rémunérations!E440 -> 265157 | F16: 265157 | G16: 0 | H16: 0 | I16: 1
A17: 16 | B17: MSD France | C17: ='Avantages perçus'!F122 -> 184997 | D17: ='Conventions signées'!G726 -> 0 | E17: =Rémunérations!E462 -> 0 | F17: =SUM(C17:E17) -> 184997 | G17: 1 | H17: 0 | I17: 0
A18: 17 | B18: INSTITUT MERIEUX | C18: ='Avantages perçus'!F124 -> 101500 | D18: ='Conventions signées'!G739 -> 0 | E18: =Rémunérations!E470 -> 0 | F18: 101500 | G18: 1 | H18: 0 | I18: 0
A19: 18 | B19: EISAI SAS | C19: ='Avantages perçus'!F177 -> 0 | D19: ='Conventions signées'!G741 -> 38600 | E19: =Rémunérations!E474 -> 38600 | F19: 77200 | G19: =C19/F19 -> 0 | H19: =D19/F19 -> 0.5 | I19: =E19/F19 -> 0.5
A20: 19 | B20: CHUGAI PHARMA France | C20: ='Avantages perçus'!F126 -> 64600 | D20: ='Conventions signées'!G735 -> 0 | E20: =Rémunérations!E468 -> 0 | F20: 64600 | G20: 1 | H20: 0 | I20: 0
A21: 20 | B21: GE Medical Systems SCS | C21: ='Avantages perçus'!F175 -> 0 | D21: ='Conventions signées'!G706 -> 52970 | E21: =Rémunérations!E472 -> 0 | F21: 52970 | G21: =C21/F21 -> 0 | H21: =D21/F21 -> 1 | I21: =E21/F21 -> 0
A22: 21 | B22: Takeda France | C22: ='Avantages perçus'!F136 -> 27700 | D22: ='Conventions signées'!G708 -> 27700 | E22: =Rémunérations!E466 -> 0 | F22: 55400 | G22: 0.5 | H22: 0.5 | I22: 0
A23: 22 | B23: JANSSEN-CILAG | C23: ='Avantages perçus'!F162 -> 0 | D23: ='Conventions signées'!G712 -> 1200 | E23: =Rémunérations!E454 -> 52768 | F23: 53968 | G23: 0 | H23: 0.02223539875 | I23: 0.9777646012
A24: 23 | B24: Genzyme | C24: ='Avantages perçus'!F142 -> 4500 | D24: ='Conventions signées'!G720 -> 0 | E24: =Rémunérations!E456 -> 21160 | F24: 25660 | G24: 0.175370226 | H24: 0 | I24: 0.824629774
A25: 24 | B25: MERCK SERONO | C25: ='Avantages perçus'!F144 -> 3520 | D25: ='Conventions signées'!G733 -> 0 | E25: =Rémunérations!E464 -> 0 | F25: =SUM(C25:E25) -> 3520 | G25: 1 | H25: 0 | I25: 0
A26: 25 | B26: IPSEN PHARMA | C26: ='Avantages perçus'!F168 -> 0 | D26: ='Conventions signées'!G724 -> 0 | E26: =Rémunérations!E460 -> 1700 | F26: 1700 | G26: 0 | H26: 0 | I26: 1
B29: Total | F29: =SUM(F2:F26) -> 21062890 | G29: =F29/('Tableaux de synthèse'!C5+'Tableaux de synthèse'!F5) -> 0.9439514949
